Workbook

Sheet sunsettable
A1: Calculation of local times of sunrise, solar noon, sunset, dawn, and dusk based on the calculation procedure by NOAA (http://www.srrb.noaa.gov/highlights/sunrise/sunrise.html)
A3: Input
A4: latitude in decimal degrees (positive in northern hemisphere) | B4: =37.5373 -> 37.5373
A5: longitude in decimal degrees (negative for western hemisphere) | B5: =-122.3375 -> -122.3375 | C5: dusk on offset | D5: 8
A6: year | B6: 2011 | C6: dawn Off offset | D6: 9 | G6: =MIN($E$83:$E$1947) -> 17:30:50.227 | H6: Earliest ON time
A7: month | B7: 1 | G7: =CONCATENATE(TEXT(HOUR($G$6),"#"),":00:00") -> 17:00:00 | H7: Earliest start time hour (Set your wall timer and TaskScheduler to start the script at this time)
A8: day | B8: 1
A9: time zone in hours relative to GMT/UTC (PST= -8, MST= -7, CST= -6, EST= -5) | B9: -8 | C9: DST Start | D9: DST End | E9: Note: DST starts the 2nd sunday in march and ends the day before the 1st sunday in November.
A10: daylight savings time (no= 0, yes= 1) | B10: 1 | C10: 2011-03-13 | D10: 2011-11-06
A12: Output (local time in days) | G12: =MAX($M$83:$M$1947) -> 07:43:48.636 | H12: Latest OFF time
A13: astronomical dawn (sun is 18 degrees below horizon) | B13: =dawn(B4,B5,B6,B7,B8,B9,B10,18) -> 06:50:31.032 | G13: =CONCATENATE(TEXT(HOUR($G$12)+1,"#"),":00:00") -> 8:00:00 | H13: Latest wall timer hour (Set your wall timer and Task Scheduler to stop the script at this time)
A14: nautical dawn (sun is 12 degrees below horizon) | B14: =dawn(B4,B5,B6,B7,B8,B9,B10,12) -> 07:22:17.948
A15: civil dawn (sun is 6 degrees below horizon) | B15: =dawn(B4,B5,B6,B7,B8,B9,B10,6) -> 07:54:59.562
A16: sunrise (sun is 0.833 degrees below horizon to account for refraction) | B16: =sunrise(B4,B5,B6,B7,B8,B9,B10) -> 08:24:09.278
A17: solar noon (sun is at its highest point in the sky for this day) | B17: =solarnoon(B4,B5,B6,B7,B8,B9,B10) -> 13:12:56.525
A18: sunset (sun is 0.833 degrees below horizon to account for refraction) | B18: =sunset(B4,B5,B6,B7,B8,B9,B10) -> 18:01:51.552
A19: civil dusk (sun is 6 degrees below horizon) | B19: =dusk(B4,B5,B6,B7,B8,B9,B10,6) -> 18:31:00.594
A20: nautical dusk (sun is 12 degrees below horizon) | B20: =dusk(B4,B5,B6,B7,B8,B9,B10,12) -> 19:03:41.607
A21: astronomical dusk (sun is 18 degrees below horizon) | B21: =dusk(B4,B5,B6,B7,B8,B9,B10,18) -> 19:35:28.068
A22: =CONCATENATE("Dynamic dawn (sun is ",D5,"° below horizon)") -> Dynamic dawn (sun is 8° below horizon) | B22: =dusk(B4,B5,B6,B7,B8,B9,B10,D6) -> 18:47:29.096
A23: =CONCATENATE("Dynamic dusk (sun is ",D5,"° below horizon)") -> Dynamic dusk (sun is 8° below horizon) | B23: =dusk(B4,B5,B6,B7,B8,B9,B10,D5) -> 18:42:01.506
E73: ```
C76: =MIN($E$83:$E$449) -> 17:30:50.227 | D76: Earliest ON time
C77: =CONCATENATE(TEXT(HOUR($C$76),"#"),":00:00") -> 17:00:00 | D77: Delay will be from the earliest start time hour (Set your TaskScheduler to start the script at this time)
I79: Dusk | J79: Dusk | K79: Dawn
I80: (UTC at | J80: (LDT at | K80: (UTC at
D81: Dawn OFF | E81: Dusk ON | F81: Dur- | I81: =CONCATENATE($D$5,"°below") -> 8°below | J81: =CONCATENATE($D$5,"° below ") -> 8° below | K81: =CONCATENATE($D$6,"° below") -> 9° below
C82: Date | D82: =CONCATENATE($D$5,"° ") -> 8° | E82: =CONCATENATE($D$5,"° ") -> 8° | F82: ation | G82: Delay | H82: DST | I82: horizon | J82: horizon | K82: horizon | L82: date | M82: sunrise | N82: sunset | O82: Day #
C83: =TEXT(L83,"mm/dd/yyyy") -> 01/01/2011 | D83: =TEXT(dawn($B$4,$B$5,YEAR($C83+1),MONTH($C83+1),DAY($C83+1),$B$9,$H83,$D$6),"hh:mm:ss") -> 06:38:42 | E83: =dusk($B$4,$B$5,YEAR(C83),MONTH(C83),DAY(C83),$B$9,$H83,$D$5) -> 17:42:01.506 | F83: =((TIME(23,59,59.999)-E83)+D83)*24 -> 12.94430378 | G83: =HOUR(E83-$C$77)*3600+MINUTE(E83-$C$77)*60+SECOND(E83-$C$77) -> 2522 | H83: =IF($B$10=1,IF(MATCH($L83,DATE(YEAR($L83),{1,3,11},{1,15,8})-WEEKDAY(DATE(YEAR($L83),{1,3,11},7)))=2,1,0),0) -> 0 | I83: =dusk($B$4,$B$5,YEAR($C83),MONTH($C83),DAY($C83),0,0,$D$5) -> 1.070850768 | J83: =dusk($B$4,$B$5,YEAR($C83),MONTH($C83),DAY($C83),$B$9,$H83,$D$5) -> 17:42:01.506 | K83: =dawn($B$4,$B$5,YEAR($C83+1),MONTH($C83+1),DAY($C83+1),0,0,$D$6) -> 14:38:41.720 | L83: =DATE($B$6,1,1) -> 2011-01-01 | M83: =dawn($B$4,$B$5,YEAR($C83+1),MONTH($C83+1),DAY($C83+1),$B$9,$H83,0) -> 07:29:06.067 | N83: =dusk($B$4,$B$5,YEAR(C83),MONTH(C83),DAY(C83),$B$9,$H83,0) -> 16:57:03 | O83: 0
C84: 01/02/2011 | D84: 06:38:51 | E84: 17:42:47.430 | F84: 12.9340473 | G84: =HOUR(E84-$C$77)*3600+MINUTE(E84-$C$77)*60+SECOND(E84-$C$77) -> 2567 | H84: =IF($B$10=1,IF(MATCH($L84,DATE(YEAR($L84),{1,3,11},{1,15,8})-WEEKDAY(DATE(YEAR($L84),{1,3,11},7)))=2,1,0),0) -> 0 | I84: 1.071382289 | J84: 17:42:47.430 | K84: =dawn($B$4,$B$5,YEAR($C84+1),MONTH($C84+1),DAY($C84+1),0,0,$D$6) -> 14:38:50.882 | L84: =L83+1 -> 2011-01-02 | M84: =dawn($B$4,$B$5,YEAR($C84+1),MONTH($C84+1),DAY($C84+1),$B$9,$H84,0) -> 07:29:12.127 | N84: =dusk($B$4,$B$5,YEAR(C84),MONTH(C84),DAY(C84),$B$9,$H84,0) -> 16:57:51.619 | O84: =O83+1 -> 1
C85: 01/03/2011 | D85: 06:38:58 | E85: 17:43:34.493 | F85: 12.92291852 | G85: 2614 | H85: =IF($B$10=1,IF(MATCH($L85,DATE(YEAR($L85),{1,3,11},{1,15,8})-WEEKDAY(DATE(YEAR($L85),{1,3,11},7)))=2,1,0),0) -> 0 | I85: 1.071927006 | J85: 17:43:34.493 | K85: 14:38:58.208 | L85: =L84+1 -> 2011-01-03 | M85: 07:29:16.127 | N85: 16:58:41.586 | O85: =O84+1 -> 2
C86: 01/04/2011 | D86: 06:39:04 | E86: 17:44:22.653 | F86: 12.91120751 | G86: 2663 | H86: =IF($B$10=1,IF(MATCH($L86,DATE(YEAR($L86),{1,3,11},{1,15,8})-WEEKDAY(DATE(YEAR($L86),{1,3,11},7)))=2,1,0),0) -> 0 | I86: 1.072484409 | J86: 17:44:22.653 | K86: 14:39:03.684 | L86: 2011-01-04 | M86: 07:29:18.060 | N86: 16:59:32.851 | O86: 3
C87: 01/05/2011 | D87: 06:39:07 | E87: 17:45:11.864 | F87: 12.89837104 | G87: 2712 | H87: =IF($B$10=1,IF(MATCH($L87,DATE(YEAR($L87),{1,3,11},{1,15,8})-WEEKDAY(DATE(YEAR($L87),{1,3,11},7)))=2,1,0),0) -> 0 | I87: 1.073053984 | J87: 17:45:11.864 | K87: 14:39:07.299 | L87: 2011-01-05 | M87: 07:29:17.921 | N87: 17:00:25.364 | O87: 4
C88: 01/06/2011 | D88: 06:39:09 | E88: 17:46:02.082 | F88: 12.88497713 | G88: 2762 | H88: =IF($B$10=1,IF(MATCH($L88,DATE(YEAR($L88),{1,3,11},{1,15,8})-WEEKDAY(DATE(YEAR($L88),{1,3,11},7)))=2,1,0),0) -> 0 | I88: 1.073635212 | J88: 17:46:02.082 | K88: 14:39:09.041 | L88: 2011-01-06 | M88: 07:29:15.707 | N88: 17:01:19.071 | O88: 5
C89: 01/07/2011 | D89: 06:39:09 | E89: 17:46:53.262 | F89: 12.87076046 | G89: 2813 | H89: =IF($B$10=1,IF(MATCH($L89,DATE(YEAR($L89),{1,3,11},{1,15,8})-WEEKDAY(DATE(YEAR($L89),{1,3,11},7)))=2,1,0),0) -> 0 | I89: 1.074227574 | J89: 17:46:53.262 | K89: 14:39:08.901 | L89: 2011-01-07 | M89: 07:29:11.418 | N89: 17:02:13.922 | O89: 6
C90: 01/08/2011 | D90: 06:39:07 | E90: 17:47:45.359 | F90: 12.85573353 | G90: 2865 | H90: =IF($B$10=1,IF(MATCH($L90,DATE(YEAR($L90),{1,3,11},{1,15,8})-WEEKDAY(DATE(YEAR($L90),{1,3,11},7)))=2,1,0),0) -> 0 | I90: 1.074830547 | J90: 17:47:45.359 | K90: 14:39:06.873 | L90: 2011-01-08 | M90: 07:29:05.054 | N90: 17:03:09.864 | O90: 7
C91: 01/09/2011 | D91: 06:39:03 | E91: 17:48:38.328 | F91: 12.83990885 | G91: 2918 | H91: =IF($B$10=1,IF(MATCH($L91,DATE(YEAR($L91),{1,3,11},{1,15,8})-WEEKDAY(DATE(YEAR($L91),{1,3,11},7)))=2,1,0),0) -> 0 | I91: 1.075443613 | J91: 17:48:38.328 | K91: 14:39:02.950 | L91: 2011-01-09 | M91: 07:28:56.618 | N91: 17:04:06.844 | O91: 8
C92: 01/10/2011 | D92: 06:38:57 | E92: 17:49:32.124 | F92: 12.82329888 | G92: 2972 | H92: =IF($B$10=1,IF(MATCH($L92,DATE(YEAR($L92),{1,3,11},{1,15,8})-WEEKDAY(DATE(YEAR($L92),{1,3,11},7)))=2,1,0),0) -> 0 | I92: 1.07606625 | J92: 17:49:32.124 | K92: 14:38:57.129 | L92: 2011-01-10 | M92: 07:28:46.116 | N92: 17:05:04.809 | O92: 9
C93: 01/11/2011 | D93: 06:38:49 | E93: 17:50:26.702 | F93: 12.80591602 | G93: 3027 | H93: =IF($B$10=1,IF(MATCH($L93,DATE(YEAR($L93),{1,3,11},{1,15,8})-WEEKDAY(DATE(YEAR($L93),{1,3,11},7)))=2,1,0),0) -> 0 | I93: 1.076697944 | J93: 17:50:26.702 | K93: 14:38:49.406 | L93: 2011-01-11 | M93: 07:28:33.552 | N93: 17:06:03.707 | O93: 10
C94: 01/12/2011 | D94: 06:38:40 | E94: 17:51:22.019 | F94: 12.78805039 | G94: 3082 | H94: =IF($B$10=1,IF(MATCH($L94,DATE(YEAR($L94),{1,3,11},{1,15,8})-WEEKDAY(DATE(YEAR($L94),{1,3,11},7)))=2,1,0),0) -> 0 | I94: 1.077338178 | J94: 17:51:22.019 | K94: 14:38:39.781 | L94: 2011-01-12 | M94: 07:28:18.936 | N94: 17:07:03.485 | O94: 11
C95: 01/13/2011 | D95: 06:38:28 | E95: 17:52:18.029 | F95: 12.76915865 | G95: 3138 | H95: =IF($B$10=1,IF(MATCH($L95,DATE(YEAR($L95),{1,3,11},{1,15,8})-WEEKDAY(DATE(YEAR($L95),{1,3,11},7)))=2,1,0),0) -> 0 | I95: 1.077986445 | J95: 17:52:18.029 | K95: 14:38:28.253 | L95: 2011-01-13 | M95: 07:28:02.278 | N95: 17:08:04.090 | O95: 12
C96: 01/14/2011 | D96: 06:38:15 | E96: 17:53:14.690 | F96: 12.74980846 | G96: 3195 | H96: =IF($B$10=1,IF(MATCH($L96,DATE(YEAR($L96),{1,3,11},{1,15,8})-WEEKDAY(DATE(YEAR($L96),{1,3,11},7)))=2,1,0),0) -> 0 | I96: 1.07864224 | J96: 17:53:14.690 | K96: 14:38:14.825 | L96: 2011-01-14 | M96: 07:27:43.589 | N96: 17:09:05.470 | O96: 13
C97: 01/15/2011 | D97: 06:38:00 | E97: 17:54:11.958 | F97: 12.72973398 | G97: 3252 | H97: =IF($B$10=1,IF(MATCH($L97,DATE(YEAR($L97),{1,3,11},{1,15,8})-WEEKDAY(DATE(YEAR($L97),{1,3,11},7)))=2,1,0),0) -> 0 | I97: 1.079305066 | J97: 17:54:11.958 | K97: 14:37:59.500 | L97: 2011-01-15 | M97: 07:27:22.882 | N97: 17:10:07.574 | O97: 14
C98: 01/16/2011 | D98: 06:37:42 | E98: 17:55:09.791 | F98: 12.70866922 | G98: 3310 | H98: =IF($B$10=1,IF(MATCH($L98,DATE(YEAR($L98),{1,3,11},{1,15,8})-WEEKDAY(DATE(YEAR($L98),{1,3,11},7)))=2,1,0),0) -> 0 | I98: 1.079974431 | J98: 17:55:09.791 | K98: 14:37:42.283 | L98: 2011-01-16 | M98: 07:27:00.171 | N98: 17:11:10.349 | O98: 15
C99: 01/17/2011 | D99: 06:37:23 | E99: 17:56:08.147 | F99: 12.68718131 | G99: 3368 | H99: =IF($B$10=1,IF(MATCH($L99,DATE(YEAR($L99),{1,3,11},{1,15,8})-WEEKDAY(DATE(YEAR($L99),{1,3,11},7)))=2,1,0),0) -> 0 | I99: 1.080649853 | J99: 17:56:08.147 | K99: 14:37:23.179 | L99: 2011-01-17 | M99: 07:26:35.472 | N99: 17:12:13.746 | O99: 16
C100: 01/18/2011 | D100: 06:37:02 | E100: 17:57:06.986 | F100: 12.66500384 | G100: 3427 | H100: =IF($B$10=1,IF(MATCH($L100,DATE(YEAR($L100),{1,3,11},{1,15,8})-WEEKDAY(DATE(YEAR($L100),{1,3,11},7)))=2,1,0),0) -> 0 | I100: 1.081330858 | J100: 17:57:06.986 | K100: 14:37:02.197 | L100: 2011-01-18 | M100: 07:26:08.804 | N100: 17:13:17.714 | O100: 17
C101: 01/19/2011 | D101: 06:36:39 | E101: 17:58:06.267 | F101: 12.64214795 | G101: 3486 | H101: =IF($B$10=1,IF(MATCH($L101,DATE(YEAR($L101),{1,3,11},{1,15,8})-WEEKDAY(DATE(YEAR($L101),{1,3,11},7)))=2,1,0),0) -> 0 | I101: 1.082016984 | J101: 17:58:06.267 | K101: 14:36:39.344 | L101: 2011-01-19 | M101: 07:25:40.183 | N101: 17:14:22.205 | O101: 18
C102: 01/20/2011 | D102: 06:36:15 | E102: 17:59:05.952 | F102: 12.61890229 | G102: 3546 | H102: =IF($B$10=1,IF(MATCH($L102,DATE(YEAR($L102),{1,3,11},{1,15,8})-WEEKDAY(DATE(YEAR($L102),{1,3,11},7)))=2,1,0),0) -> 0 | I102: 1.082707775 | J102: 17:59:05.952 | K102: 14:36:14.631 | L102: 2011-01-20 | M102: 07:25:09.631 | N102: 17:15:27.170 | O102: 19
C103: 01/21/2011 | D103: 06:35:48 | E103: 18:00:06.001 | F103: 12.59472192 | G103: 3606 | H103: =IF($B$10=1,IF(MATCH($L103,DATE(YEAR($L103),{1,3,11},{1,15,8})-WEEKDAY(DATE(YEAR($L103),{1,3,11},7)))=2,1,0),0) -> 0 | I103: 1.08340279 | J103: 18:00:06.001 | K103: 14:35:48.069 | L103: 2011-01-21 | M103: 07:24:37.168 | N103: 17:16:32.563 | O103: 20
C104: 01/22/2011 | D104: 06:35:20 | E104: 18:01:06.378 | F104: 12.57017273 | G104: 3666 | H104: =IF($B$10=1,IF(MATCH($L104,DATE(YEAR($L104),{1,3,11},{1,15,8})-WEEKDAY(DATE(YEAR($L104),{1,3,11},7)))=2,1,0),0) -> 0 | I104: 1.084101599 | J104: 18:01:06.378 | K104: 14:35:19.670 | L104: 2011-01-22 | M104: 07:24:02.817 | N104: 17:17:38.336 | O104: 21
C105: 01/23/2011 | D105: 06:34:49 | E105: 18:02:07.047 | F105: 12.54470918 | G105: 3727 | H105: =IF($B$10=1,IF(MATCH($L105,DATE(YEAR($L105),{1,3,11},{1,15,8})-WEEKDAY(DATE(YEAR($L105),{1,3,11},7)))=2,1,0),0) -> 0 | I105: 1.084803784 | J105: 18:02:07.047 | K105: 14:34:49.448 | L105: 2011-01-23 | M105: 07:23:26.600 | N105: 17:18:44.445 | O105: 22
C106: 01/24/2011 | D106: 06:34:17 | E106: 18:03:07.972 | F106: 12.51889656 | G106: 3788 | H106: =IF($B$10=1,IF(MATCH($L106,DATE(YEAR($L106),{1,3,11},{1,15,8})-WEEKDAY(DATE(YEAR($L106),{1,3,11},7)))=2,1,0),0) -> 0 | I106: 1.08550894 | J106: 18:03:07.972 | K106: 14:34:17.417 | L106: 2011-01-24 | M106: 07:22:48.542 | N106: 17:19:50.847 | O106: 23
C107: 01/25/2011 | D107: 06:33:44 | E107: 18:04:09.121 | F107: 12.49274425 | G107: 3849 | H107: =IF($B$10=1,IF(MATCH($L107,DATE(YEAR($L107),{1,3,11},{1,15,8})-WEEKDAY(DATE(YEAR($L107),{1,3,11},7)))=2,1,0),0) -> 0 | I107: 1.086216675 | J107: 18:04:09.121 | K107: 14:33:43.594 | L107: 2011-01-25 | M107: 07:22:08.668 | N107: 17:20:57.498 | O107: 24
C108: 01/26/2011 | D108: 06:33:08 | E108: 18:05:10.459 | F108: 12.46570576 | G108: 3910 | H108: =IF($B$10=1,IF(MATCH($L108,DATE(YEAR($L108),{1,3,11},{1,15,8})-WEEKDAY(DATE(YEAR($L108),{1,3,11},7)))=2,1,0),0) -> 0 | I108: 1.086926612 | J108: 18:05:10.459 | K108: 14:33:07.994 | L108: 2011-01-26 | M108: 07:21:27.004 | N108: 17:22:04.359 | O108: 25
C109: 01/27/2011 | D109: 06:32:31 | E109: 18:06:11.957 | F109: 12.43834534 | G109: 3972 | H109: =IF($B$10=1,IF(MATCH($L109,DATE(YEAR($L109),{1,3,11},{1,15,8})-WEEKDAY(DATE(YEAR($L109),{1,3,11},7)))=2,1,0),0) -> 0 | I109: 1.087638388 | J109: 18:06:11.957 | K109: 14:32:30.636 | L109: 2011-01-27 | M109: 07:20:43.577 | N109: 17:23:11.388 | O109: 26
C110: 01/28/2011 | D110: 06:31:52 | E110: 18:07:13.583 | F110: 12.41039358 | G110: 4034 | H110: =IF($B$10=1,IF(MATCH($L110,DATE(YEAR($L110),{1,3,11},{1,15,8})-WEEKDAY(DATE(YEAR($L110),{1,3,11},7)))=2,1,0),0) -> 0 | I110: 1.088351656 | J110: 18:07:13.583 | K110: 14:31:51.537 | L110: 2011-01-28 | M110: 07:19:58.415 | N110: 17:24:18.548 | O110: 27
C111: 01/29/2011 | D111: 06:31:11 | E111: 18:08:15.310 | F111: 12.38185846 | G111: 4095 | H111: =IF($B$10=1,IF(MATCH($L111,DATE(YEAR($L111),{1,3,11},{1,15,8})-WEEKDAY(DATE(YEAR($L111),{1,3,11},7)))=2,1,0),0) -> 0 | I111: 1.089066083 | J111: 18:08:15.310 | K111: 14:31:10.719 | L111: 2011-01-29 | M111: 07:19:11.545 | N111: 17:25:25.801 | O111: 28
C112: 01/30/2011 | D112: 06:30:28 | E112: 18:09:17.109 | F112: 12.3527476 | G112: 4157 | H112: =IF($B$10=1,IF(MATCH($L112,DATE(YEAR($L112),{1,3,11},{1,15,8})-WEEKDAY(DATE(YEAR($L112),{1,3,11},7)))=2,1,0),0) -> 0 | I112: 1.08978135 | J112: 18:09:17.109 | K112: 14:30:28.200 | L112: 2011-01-30 | M112: 07:18:22.998 | N112: 17:26:33.112 | O112: 29
C113: 01/31/2011 | D113: 06:29:44 | E113: 18:10:18.954 | F113: 12.32334603 | G113: 4219 | H113: =IF($B$10=1,IF(MATCH($L113,DATE(YEAR($L113),{1,3,11},{1,15,8})-WEEKDAY(DATE(YEAR($L113),{1,3,11},7)))=2,1,0),0) -> 0 | I113: 1.090497156 | J113: 18:10:18.954 | K113: 14:29:44.002 | L113: 2011-01-31 | M113: 07:17:32.802 | N113: 17:27:40.448 | O113: 30
C114: 02/01/2011 | D114: 06:28:58 | E114: 18:11:20.822 | F114: 12.29338285 | G114: 4281 | H114: =IF($B$10=1,IF(MATCH($L114,DATE(YEAR($L114),{1,3,11},{1,15,8})-WEEKDAY(DATE(YEAR($L114),{1,3,11},7)))=2,1,0),0) -> 0 | I114: 1.091213215 | J114: 18:11:20.822 | K114: 14:28:58.147 | L114: 2011-02-01 | M114: 07:16:40.989 | N114: 17:28:47.776 | O114: 31
C115: 02/02/2011 | D115: 06:28:11 | E115: 18:12:22.688 | F115: 12.26314232 | G115: 4343 | H115: =IF($B$10=1,IF(MATCH($L115,DATE(YEAR($L115),{1,3,11},{1,15,8})-WEEKDAY(DATE(YEAR($L115),{1,3,11},7)))=2,1,0),0) -> 0 | I115: 1.091929255 | J115: 18:12:22.688 | K115: 14:28:10.657 | L115: 2011-02-02 | M115: 07:15:47.588 | N115: 17:29:55.065 | O115: 32
C116: 02/03/2011 | D116: 06:27:22 | E116: 18:13:24.530 | F116: 12.23235278 | G116: 4405 | H116: =IF($B$10=1,IF(MATCH($L116,DATE(YEAR($L116),{1,3,11},{1,15,8})-WEEKDAY(DATE(YEAR($L116),{1,3,11},7)))=2,1,0),0) -> 0 | I116: 1.092645023 | J116: 18:13:24.530 | K116: 14:27:21.557 | L116: 2011-02-03 | M116: 07:14:52.631 | N116: 17:31:02.286 | O116: 33
C117: 02/04/2011 | D117: 06:26:31 | E117: 18:14:26.328 | F117: 12.20101995 | G117: 4466 | H117: =IF($B$10=1,IF(MATCH($L117,DATE(YEAR($L117),{1,3,11},{1,15,8})-WEEKDAY(DATE(YEAR($L117),{1,3,11},7)))=2,1,0),0) -> 0 | I117: 1.09336028 | J117: 18:14:26.328 | K117: 14:26:30.870 | L117: 2011-02-04 | M117: 07:13:56.150 | N117: 17:32:09.412 | O117: 34
C118: 02/05/2011 | D118: 06:25:39 | E118: 18:15:28.063 | F118: 12.16942695 | G118: 4528 | H118: =IF($B$10=1,IF(MATCH($L118,DATE(YEAR($L118),{1,3,11},{1,15,8})-WEEKDAY(DATE(YEAR($L118),{1,3,11},7)))=2,1,0),0) -> 0 | I118: 1.094074803 | J118: 18:15:28.063 | K118: 14:25:38.620 | L118: 2011-02-05 | M118: 07:12:58.177 | N118: 17:33:16.415 | O118: 35
C119: 02/06/2011 | D119: 06:24:45 | E119: 18:16:29.717 | F119: 12.13730097 | G119: 4590 | H119: =IF($B$10=1,IF(MATCH($L119,DATE(YEAR($L119),{1,3,11},{1,15,8})-WEEKDAY(DATE(YEAR($L119),{1,3,11},7)))=2,1,0),0) -> 0 | I119: 1.094788385 | J119: 18:16:29.717 | K119: 14:24:44.834 | L119: 2011-02-06 | M119: 07:11:58.745 | N119: 17:34:23.272 | O119: 36
C120: 02/07/2011 | D120: 06:23:50 | E120: 18:17:31.272 | F120: 12.10492438 | G120: 4651 | H120: =IF($B$10=1,IF(MATCH($L120,DATE(YEAR($L120),{1,3,11},{1,15,8})-WEEKDAY(DATE(YEAR($L120),{1,3,11},7)))=2,1,0),0) -> 0 | I120: 1.095500836 | J120: 18:17:31.272 | K120: 14:23:49.536 | L120: 2011-02-07 | M120: 07:10:57.885 | N120: 17:35:29.960 | O120: 37
C121: 02/08/2011 | D121: 06:22:53 | E121: 18:18:32.715 | F121: 12.07202361 | G121: 4713 | H121: =IF($B$10=1,IF(MATCH($L121,DATE(YEAR($L121),{1,3,11},{1,15,8})-WEEKDAY(DATE(YEAR($L121),{1,3,11},7)))=2,1,0),0) -> 0 | I121: 1.096211979 | J121: 18:18:32.715 | K121: 14:22:52.753 | L121: 2011-02-08 | M121: 07:09:55.632 | N121: 17:36:36.457 | O121: 38
C122: 02/09/2011 | D122: 06:21:55 | E122: 18:19:34.031 | F122: 12.03888029 | G122: 4774 | H122: =IF($B$10=1,IF(MATCH($L122,DATE(YEAR($L122),{1,3,11},{1,15,8})-WEEKDAY(DATE(YEAR($L122),{1,3,11},7)))=2,1,0),0) -> 0 | I122: 1.096921655 | J122: 18:19:34.031 | K122: 14:21:54.511 | L122: 2011-02-09 | M122: 07:08:52.018 | N122: 17:37:42.743 | O122: 39
C123: 02/10/2011 | D123: 06:20:55 | E123: 18:20:35.208 | F123: 12.00522011 | G123: 4835 | H123: =IF($B$10=1,IF(MATCH($L123,DATE(YEAR($L123),{1,3,11},{1,15,8})-WEEKDAY(DATE(YEAR($L123),{1,3,11},7)))=2,1,0),0) -> 0 | I123: 1.097629718 | J123: 18:20:35.208 | K123: 14:20:54.839 | L123: 2011-02-10 | M123: 07:07:47.078 | N123: 17:38:48.801 | O123: 40
C124: 02/11/2011 | D124: 06:19:54 | E124: 18:21:36.234 | F124: 11.97132397 | G124: 4896 | H124: =IF($B$10=1,IF(MATCH($L124,DATE(YEAR($L124),{1,3,11},{1,15,8})-WEEKDAY(DATE(YEAR($L124),{1,3,11},7)))=2,1,0),0) -> 0 | I124: 1.098336038 | J124: 18:21:36.234 | K124: 14:19:53.763 | L124: 2011-02-11 | M124: 07:06:40.844 | N124: 17:39:54.612 | O124: 41
C125: 02/12/2011 | D125: 06:18:51 | E125: 18:22:37.099 | F125: 11.93691687 | G125: 4957 | H125: =IF($B$10=1,IF(MATCH($L125,DATE(YEAR($L125),{1,3,11},{1,15,8})-WEEKDAY(DATE(YEAR($L125),{1,3,11},7)))=2,1,0),0) -> 0 | I125: 1.099040501 | J125: 18:22:37.099 | K125: 14:18:51.312 | L125: 2011-02-12 | M125: 07:05:33.352 | N125: 17:41:00.163 | O125: 42
C126: 02/13/2011 | D126: 06:17:48 | E126: 18:23:37.796 | F126: 11.90255678 | G126: 5018 | H126: =IF($B$10=1,IF(MATCH($L126,DATE(YEAR($L126),{1,3,11},{1,15,8})-WEEKDAY(DATE(YEAR($L126),{1,3,11},7)))=2,1,0),0) -> 0 | I126: 1.099743005 | J126: 18:23:37.796 | K126: 14:17:47.514 | L126: 2011-02-13 | M126: 07:04:24.634 | N126: 17:42:05.438 | O126: 43
C127: 02/14/2011 | D127: 06:16:42 | E127: 18:24:38.315 | F127: 11.86741246 | G127: 5078 | H127: =IF($B$10=1,IF(MATCH($L127,DATE(YEAR($L127),{1,3,11},{1,15,8})-WEEKDAY(DATE(YEAR($L127),{1,3,11},7)))=2,1,0),0) -> 0 | I127: 1.100443462 | J127: 18:24:38.315 | K127: 14:16:42.397 | L127: 2011-02-14 | M127: 07:03:14.724 | N127: 17:43:10.426 | O127: 44
C128: 02/15/2011 | D128: 06:15:36 | E128: 18:25:38.652 | F128: 11.832319 | G128: 5139 | H128: =IF($B$10=1,IF(MATCH($L128,DATE(YEAR($L128),{1,3,11},{1,15,8})-WEEKDAY(DATE(YEAR($L128),{1,3,11},7)))=2,1,0),0) -> 0 | I128: 1.101141801 | J128: 18:25:38.652 | K128: 14:15:35.991 | L128: 2011-02-15 | M128: 07:02:03.658 | N128: 17:44:15.115 | O128: 45
C129: 02/16/2011 | D129: 06:14:28 | E129: 18:26:38.800 | F129: 11.79672229 | G129: 5199 | H129: =IF($B$10=1,IF(MATCH($L129,DATE(YEAR($L129),{1,3,11},{1,15,8})-WEEKDAY(DATE(YEAR($L129),{1,3,11},7)))=2,1,0),0) -> 0 | I129: 1.10183796 | J129: 18:26:38.800 | K129: 14:14:28.324 | L129: 2011-02-16 | M129: 07:00:51.469 | N129: 17:45:19.495 | O129: 46
C130: 02/17/2011 | D130: 06:13:19 | E130: 18:27:38.756 | F130: 11.76090123 | G130: 5259 | H130: =IF($B$10=1,IF(MATCH($L130,DATE(YEAR($L130),{1,3,11},{1,15,8})-WEEKDAY(DATE(YEAR($L130),{1,3,11},7)))=2,1,0),0) -> 0 | I130: 1.102531893 | J130: 18:27:38.756 | K130: 14:13:19.426 | L130: 2011-02-17 | M130: 06:59:38.192 | N130: 17:46:23.558 | O130: 47
C131: 02/18/2011 | D131: 06:12:09 | E131: 18:28:38.516 | F131: 11.72485665 | G131: 5319 | H131: =IF($B$10=1,IF(MATCH($L131,DATE(YEAR($L131),{1,3,11},{1,15,8})-WEEKDAY(DATE(YEAR($L131),{1,3,11},7)))=2,1,0),0) -> 0 | I131: 1.103223566 | J131: 18:28:38.516 | K131: 14:12:09.327 | L131: 2011-02-18 | M131: 06:58:23.861 | N131: 17:47:27.297 | O131: 48
C132: 02/19/2011 | D132: 06:10:58 | E132: 18:29:38.079 | F132: 11.68858909 | G132: 5378 | H132: =IF($B$10=1,IF(MATCH($L132,DATE(YEAR($L132),{1,3,11},{1,15,8})-WEEKDAY(DATE(YEAR($L132),{1,3,11},7)))=2,1,0),0) -> 0 | I132: 1.103912955 | J132: 18:29:38.079 | K132: 14:10:58.056 | L132: 2011-02-19 | M132: 06:57:08.509 | N132: 17:48:30.705 | O132: 49
C133: 02/20/2011 | D133: 06:09:46 | E133: 18:30:37.444 | F133: 11.65209882 | G133: 5437 | H133: =IF($B$10=1,IF(MATCH($L133,DATE(YEAR($L133),{1,3,11},{1,15,8})-WEEKDAY(DATE(YEAR($L133),{1,3,11},7)))=2,1,0),0) -> 0 | I133: 1.104600049 | J133: 18:30:37.444 | K133: 14:09:45.644 | L133: 2011-02-20 | M133: 06:55:52.172 | N133: 17:49:33.779 | O133: 50
C134: 02/21/2011 | D134: 06:08:32 | E134: 18:31:36.611 | F134: 11.61510804 | G134: 5497 | H134: =IF($B$10=1,IF(MATCH($L134,DATE(YEAR($L134),{1,3,11},{1,15,8})-WEEKDAY(DATE(YEAR($L134),{1,3,11},7)))=2,1,0),0) -> 0 | I134: 1.10528485 | J134: 18:31:36.611 | K134: 14:08:32.121 | L134: 2011-02-21 | M134: 06:54:34.882 | N134: 17:50:36.514 | O134: 51
C135: 02/22/2011 | D135: 06:07:18 | E135: 18:32:35.581 | F135: 11.57817205 | G135: 5556 | H135: =IF($B$10=1,IF(MATCH($L135,DATE(YEAR($L135),{1,3,11},{1,15,8})-WEEKDAY(DATE(YEAR($L135),{1,3,11},7)))=2,1,0),0) -> 0 | I135: 1.105967368 | J135: 18:32:35.581 | K135: 14:07:17.516 | L135: 2011-02-22 | M135: 06:53:16.675 | N135: 17:51:38.907 | O135: 52
C136: 02/23/2011 | D136: 06:06:02 | E136: 18:33:34.355 | F136: 11.54073478 | G136: 5614 | H136: =IF($B$10=1,IF(MATCH($L136,DATE(YEAR($L136),{1,3,11},{1,15,8})-WEEKDAY(DATE(YEAR($L136),{1,3,11},7)))=2,1,0),0) -> 0 | I136: 1.106647625 | J136: 18:33:34.355 | K136: 14:06:01.860 | L136: 2011-02-23 | M136: 06:51:57.585 | N136: 17:52:40.958 | O136: 53
C137: 02/24/2011 | D137: 06:04:45 | E137: 18:34:32.936 | F137: 11.50307327 | G137: 5673 | H137: =IF($B$10=1,IF(MATCH($L137,DATE(YEAR($L137),{1,3,11},{1,15,8})-WEEKDAY(DATE(YEAR($L137),{1,3,11},7)))=2,1,0),0) -> 0 | I137: 1.107325651 | J137: 18:34:32.936 | K137: 14:04:45.184 | L137: 2011-02-24 | M137: 06:50:37.644 | N137: 17:53:42.665 | O137: 54
C138: 02/25/2011 | D138: 06:03:28 | E138: 18:35:31.328 | F138: 11.46546431 | G138: 5731 | H138: =IF($B$10=1,IF(MATCH($L138,DATE(YEAR($L138),{1,3,11},{1,15,8})-WEEKDAY(DATE(YEAR($L138),{1,3,11},7)))=2,1,0),0) -> 0 | I138: 1.108001487 | J138: 18:35:31.328 | K138: 14:03:27.517 | L138: 2011-02-25 | M138: 06:49:16.887 | N138: 17:54:44.030 | O138: 55
C139: 02/26/2011 | D139: 06:02:09 | E139: 18:36:29.536 | F139: 11.42735117 | G139: 5790 | H139: =IF($B$10=1,IF(MATCH($L139,DATE(YEAR($L139),{1,3,11},{1,15,8})-WEEKDAY(DATE(YEAR($L139),{1,3,11},7)))=2,1,0),0) -> 0 | I139: 1.108675183 | J139: 18:36:29.536 | K139: 14:02:08.891 | L139: 2011-02-26 | M139: 06:47:55.348 | N139: 17:55:45.053 | O139: 56
C140: 02/27/2011 | D140: 06:00:49 | E140: 18:37:27.563 | F140: 11.38901025 | G140: 5848 | H140: =IF($B$10=1,IF(MATCH($L140,DATE(YEAR($L140),{1,3,11},{1,15,8})-WEEKDAY(DATE(YEAR($L140),{1,3,11},7)))=2,1,0),0) -> 0 | I140: 1.109346795 | J140: 18:37:27.563 | K140: 14:00:49.335 | L140: 2011-02-27 | M140: 06:46:33.060 | N140: 17:56:45.737 | O140: 57
C141: 02/28/2011 | D141: 05:59:29 | E141: 18:38:25.416 | F141: 11.35071776 | G141: 5905 | H141: =IF($B$10=1,IF(MATCH($L141,DATE(YEAR($L141),{1,3,11},{1,15,8})-WEEKDAY(DATE(YEAR($L141),{1,3,11},7)))=2,1,0),0) -> 0 | I141: 1.11001639 | J141: 18:38:25.416 | K141: 13:59:28.881 | L141: 2011-02-28 | M141: 06:45:10.055 | N141: 17:57:46.085 | O141: 58
C142: 03/01/2011 | D142: 05:58:08 | E142: 18:39:23.101 | F142: 11.31219416 | G142: 5963 | H142: =IF($B$10=1,IF(MATCH($L142,DATE(YEAR($L142),{1,3,11},{1,15,8})-WEEKDAY(DATE(YEAR($L142),{1,3,11},7)))=2,1,0),0) -> 0 | I142: 1.11068404 | J142: 18:39:23.101 | K142: 13:58:07.559 | L142: 2011-03-01 | M142: 06:43:46.368 | N142: 17:58:46.101 | O142: 59
C143: 03/02/2011 | D143: 05:56:45 | E143: 18:40:20.625 | F143: 11.27315977 | G143: 6021 | H143: =IF($B$10=1,IF(MATCH($L143,DATE(YEAR($L143),{1,3,11},{1,15,8})-WEEKDAY(DATE(YEAR($L143),{1,3,11},7)))=2,1,0),0) -> 0 | I143: 1.111349824 | J143: 18:40:20.625 | K143: 13:56:45.399 | L143: 2011-03-02 | M143: 06:42:22.032 | N143: 17:59:45.789 | O143: 60
C144: 03/03/2011 | D144: 05:55:22 | E144: 18:41:17.995 | F144: 11.23416807 | G144: 6078 | H144: =IF($B$10=1,IF(MATCH($L144,DATE(YEAR($L144),{1,3,11},{1,15,8})-WEEKDAY(DATE(YEAR($L144),{1,3,11},7)))=2,1,0),0) -> 0 | I144: 1.11201383 | J144: 18:41:17.995 | K144: 13:55:22.431 | L144: 2011-03-03 | M144: 06:40:57.078 | N144: 18:00:45.155 | O144: 61
C145: 03/04/2011 | D145: 05:53:59 | E145: 18:42:15.219 | F145: 11.19521685 | G145: 6135 | H145: =IF($B$10=1,IF(MATCH($L145,DATE(YEAR($L145),{1,3,11},{1,15,8})-WEEKDAY(DATE(YEAR($L145),{1,3,11},7)))=2,1,0),0) -> 0 | I145: 1.11267615 | J145: 18:42:15.219 | K145: 13:53:58.687 | L145: 2011-03-04 | M145: 06:39:31.540 | N145: 18:01:44.205 | O145: 62
C146: 03/05/2011 | D146: 05:52:34 | E146: 18:43:12.306 | F146: 11.15574821 | G146: 6192 | H146: =IF($B$10=1,IF(MATCH($L146,DATE(YEAR($L146),{1,3,11},{1,15,8})-WEEKDAY(DATE(YEAR($L146),{1,3,11},7)))=2,1,0),0) -> 0 | I146: 1.11333688 | J146: 18:43:12.306 | K146: 13:52:34.196 | L146: 2011-03-05 | M146: 06:38:05.451 | N146: 18:02:42.946 | O146: 63
C147: =TEXT(L147,"mm/dd/yyyy") -> 03/06/2011 | D147: =TEXT(dawn($B$4,$B$5,YEAR($C147+1),MONTH($C147+1),DAY($C147+1),$B$9,$H147,$D$6),"hh:mm:ss") -> 05:51:09 | E147: =dusk($B$4,$B$5,YEAR(C147),MONTH(C147),DAY(C147),$B$9,$H147,$D$5) -> 18:44:09.265 | F147: =((TIME(23,59,59.999)-E147)+D147)*24 -> 11.11631525 | G147: 6249 | H147: =IF($B$10=1,IF(MATCH($L147,DATE(YEAR($L147),{1,3,11},{1,15,8})-WEEKDAY(DATE(YEAR($L147),{1,3,11},7)))=2,1,0),0) -> 0 | I147: =dusk($B$4,$B$5,YEAR($C147),MONTH($C147),DAY($C147),0,0,$D$5) -> 1.113996124 | J147: =dusk($B$4,$B$5,YEAR($C147),MONTH($C147),DAY($C147),$B$9,$H147,$D$5) -> 18:44:09.265 | K147: 13:51:08.990 | L147: 2011-03-06 | M147: 06:36:38.842 | N147: 18:03:41.383 | O147: 64
C148: 03/07/2011 | D148: 05:49:43 | E148: 18:45:06.105 | F148: 11.07663761 | G148: =HOUR(E148-$C$77)*3600+MINUTE(E148-$C$77)*60+SECOND(E148-$C$77) -> 6306 | H148: =IF($B$10=1,IF(MATCH($L148,DATE(YEAR($L148),{1,3,11},{1,15,8})-WEEKDAY(DATE(YEAR($L148),{1,3,11},7)))=2,1,0),0) -> 0 | I148: 1.114653989 | J148: 18:45:06.105 | K148: =dawn($B$4,$B$5,YEAR($C148+1),MONTH($C148+1),DAY($C148+1),0,0,$D$6) -> 13:49:43.097 | L148: 2011-03-07 | M148: =dawn($B$4,$B$5,YEAR($C148+1),MONTH($C148+1),DAY($C148+1),$B$9,$H148,0) -> 06:35:11.745 | N148: =dusk($B$4,$B$5,YEAR(C148),MONTH(C148),DAY(C148),$B$9,$H148,0) -> 18:04:39.526 | O148: 65
C149: 03/08/2011 | D149: 05:48:17 | E149: 18:46:02.835 | F149: 11.03699039 | G149: 6363 | H149: =IF($B$10=1,IF(MATCH($L149,DATE(YEAR($L149),{1,3,11},{1,15,8})-WEEKDAY(DATE(YEAR($L149),{1,3,11},7)))=2,1,0),0) -> 0 | I149: 1.115310586 | J149: 18:46:02.835 | K149: 13:48:16.549 | L149: =L148+1 -> 2011-03-08 | M149: 06:33:44.194 | N149: 18:05:37.382 | O149: =O148+1 -> 66
C150: 03/09/2011 | D150: 05:46:49 | E150: 18:46:59.465 | F150: 10.99681528 | G150: 6419 | H150: =IF($B$10=1,IF(MATCH($L150,DATE(YEAR($L150),{1,3,11},{1,15,8})-WEEKDAY(DATE(YEAR($L150),{1,3,11},7)))=2,1,0),0) -> 0 | I150: 1.11596603 | J150: 18:46:59.465 | K150: 13:46:49.375 | L150: 2011-03-09 | M150: 06:32:16.218 | N150: 18:06:34.960 | O150: 67
C151: 03/10/2011 | D151: 05:45:22 | E151: 18:47:56.006 | F151: 10.95694278 | G151: 6476 | H151: =IF($B$10=1,IF(MATCH($L151,DATE(YEAR($L151),{1,3,11},{1,15,8})-WEEKDAY(DATE(YEAR($L151),{1,3,11},7)))=2,1,0),0) -> 0 | I151: 1.11662044 | J151: 18:47:56.006 | K151: 13:45:21.606 | L151: 2011-03-10 | M151: 06:30:47.850 | N151: 18:07:32.268 | O151: 68
C152: 03/11/2011 | D152: 05:43:53 | E152: 18:48:52.468 | F152: 10.91653664 | G152: 6532 | H152: =IF($B$10=1,IF(MATCH($L152,DATE(YEAR($L152),{1,3,11},{1,15,8})-WEEKDAY(DATE(YEAR($L152),{1,3,11},7)))=2,1,0),0) -> 0 | I152: 1.117273936 | J152: 18:48:52.468 | K152: 13:43:53.272 | L152: 2011-03-11 | M152: 06:29:19.121 | N152: 18:08:29.316 | O152: 69
C153: 03/12/2011 | D153: 05:42:24 | E153: 18:49:48.862 | F153: 10.87614947 | G153: 6589 | H153: =IF($B$10=1,IF(MATCH($L153,DATE(YEAR($L153),{1,3,11},{1,15,8})-WEEKDAY(DATE(YEAR($L153),{1,3,11},7)))=2,1,0),0) -> 0 | I153: 1.117926643 | J153: 18:49:48.862 | K153: 13:42:24.403 | L153: 2011-03-12 | M153: 06:27:50.062 | N153: 18:09:26.114 | O153: 70
C154: 03/13/2011 | D154: 06:40:55 | E154: 19:50:45.198 | F154: 10.83577824 | G154: 10245 | H154: =IF($B$10=1,IF(MATCH($L154,DATE(YEAR($L154),{1,3,11},{1,15,8})-WEEKDAY(DATE(YEAR($L154),{1,3,11},7)))=2,1,0),0) -> 1 | I154: 1.118578685 | J154: 19:50:45.198 | K154: 13:40:55.028 | L154: 2011-03-13 | M154: 07:26:20.705 | N154: 19:10:22.671 | O154: 71
C155: 03/14/2011 | D155: 06:39:25 | E155: 19:51:41.488 | F155: 10.79514213 | G155: 10301 | H155: =IF($B$10=1,IF(MATCH($L155,DATE(YEAR($L155),{1,3,11},{1,15,8})-WEEKDAY(DATE(YEAR($L155),{1,3,11},7)))=2,1,0),0) -> 1 | I155: 1.119230189 | J155: 19:51:41.488 | K155: 13:39:25.177 | L155: 2011-03-14 | M155: 07:24:51.080 | N155: 19:11:18.998 | O155: 72
C156: 03/15/2011 | D156: 06:37:55 | E156: 19:52:37.743 | F156: 10.75451586 | G156: 10358 | H156: =IF($B$10=1,IF(MATCH($L156,DATE(YEAR($L156),{1,3,11},{1,15,8})-WEEKDAY(DATE(YEAR($L156),{1,3,11},7)))=2,1,0),0) -> 1 | I156: 1.119881284 | J156: 19:52:37.743 | K156: 13:37:54.881 | L156: 2011-03-15 | M156: 07:23:21.217 | N156: 19:12:15.105 | O156: 73
C157: 03/16/2011 | D157: 06:36:24 | E157: 19:53:33.973 | F157: 10.71361854 | G157: 10414 | H157: =IF($B$10=1,IF(MATCH($L157,DATE(YEAR($L157),{1,3,11},{1,15,8})-WEEKDAY(DATE(YEAR($L157),{1,3,11},7)))=2,1,0),0) -> 1 | I157: 1.120532098 | J157: 19:53:33.973 | K157: 13:36:24.169 | L157: 2011-03-16 | M157: 07:21:51.148 | N157: 19:13:11.001 | O157: 74
C158: 03/17/2011 | D158: 06:34:53 | E158: 19:54:30.191 | F158: 10.67272485 | G158: 10470 | H158: =IF($B$10=1,IF(MATCH($L158,DATE(YEAR($L158),{1,3,11},{1,15,8})-WEEKDAY(DATE(YEAR($L158),{1,3,11},7)))=2,1,0),0) -> 1 | I158: 1.121182761 | J158: 19:54:30.191 | K158: 13:34:53.071 | L158: 2011-03-17 | M158: 07:20:20.903 | N158: 19:14:06.699 | O158: 75
C159: 03/18/2011 | D159: 06:33:22 | E159: 19:55:26.406 | F159: 10.6318317 | G159: 10526 | H159: =IF($B$10=1,IF(MATCH($L159,DATE(YEAR($L159),{1,3,11},{1,15,8})-WEEKDAY(DATE(YEAR($L159),{1,3,11},7)))=2,1,0),0) -> 1 | I159: 1.121833402 | J159: 19:55:26.406 | K159: 13:33:21.616 | L159: 2011-03-18 | M159: 07:18:50.511 | N159: 19:15:02.209 | O159: 76
C160: 03/19/2011 | D160: 06:31:50 | E160: 19:56:22.630 | F160: 10.59065821 | G160: 10583 | H160: =IF($B$10=1,IF(MATCH($L160,DATE(YEAR($L160),{1,3,11},{1,15,8})-WEEKDAY(DATE(YEAR($L160),{1,3,11},7)))=2,1,0),0) -> 1 | I160: 1.122484149 | J160: 19:56:22.630 | K160: 13:31:49.834 | L160: 2011-03-19 | M160: 07:17:20.003 | N160: 19:15:57.541 | O160: 77
C161: 03/20/2011 | D161: 06:30:18 | E161: 19:57:18.875 | F161: 10.54947909 | G161: 10639 | H161: =IF($B$10=1,IF(MATCH($L161,DATE(YEAR($L161),{1,3,11},{1,15,8})-WEEKDAY(DATE(YEAR($L161),{1,3,11},7)))=2,1,0),0) -> 1 | I161: 1.123135131 | J161: 19:57:18.875 | K161: 13:30:17.755 | L161: 2011-03-20 | M161: 07:15:49.409 | N161: 19:16:52.705 | O161: 78
C162: 03/21/2011 | D162: 06:28:45 | E162: 19:58:15.151 | F162: 10.50801352 | G162: 10695 | H162: =IF($B$10=1,IF(MATCH($L162,DATE(YEAR($L162),{1,3,11},{1,15,8})-WEEKDAY(DATE(YEAR($L162),{1,3,11},7)))=2,1,0),0) -> 1 | I162: 1.123786474 | J162: 19:58:15.151 | K162: 13:28:45.408 | L162: 2011-03-21 | M162: 07:14:18.759 | N162: 19:17:47.714 | O162: 79
C163: 03/22/2011 | D163: 06:27:13 | E163: 19:59:11.469 | F163: 10.46681404 | G163: 10751 | H163: =IF($B$10=1,IF(MATCH($L163,DATE(YEAR($L163),{1,3,11},{1,15,8})-WEEKDAY(DATE(YEAR($L163),{1,3,11},7)))=2,1,0),0) -> 1 | I163: 1.124438304 | J163: 19:59:11.469 | K163: 13:27:12.823 | L163: 2011-03-22 | M163: 07:12:48.082 | N163: 19:18:42.578 | O163: 80
C164: 03/23/2011 | D164: 06:25:40 | E164: 20:00:07.840 | F164: 10.42532214 | G164: 10808 | H164: =IF($B$10=1,IF(MATCH($L164,DATE(YEAR($L164),{1,3,11},{1,15,8})-WEEKDAY(DATE(YEAR($L164),{1,3,11},7)))=2,1,0),0) -> 1 | I164: 1.125090744 | J164: 20:00:07.840 | K164: 13:25:40.029 | L164: 2011-03-23 | M164: 07:11:17.407 | N164: 19:19:37.307 | O164: 81
C165: 03/24/2011 | D165: 06:24:07 | E165: 20:01:04.274 | F165: 10.38381269 | G165: 10864 | H165: =IF($B$10=1,IF(MATCH($L165,DATE(YEAR($L165),{1,3,11},{1,15,8})-WEEKDAY(DATE(YEAR($L165),{1,3,11},7)))=2,1,0),0) -> 1 | I165: 1.125743916 | J165: 20:01:04.274 | K165: 13:24:07.057 | L165: 2011-03-24 | M165: 07:09:46.766 | N165: 19:20:31.912 | O165: 82
C166: 03/25/2011 | D166: 06:22:34 | E166: 20:02:00.782 | F166: 10.34228283 | G166: 10921 | H166: =IF($B$10=1,IF(MATCH($L166,DATE(YEAR($L166),{1,3,11},{1,15,8})-WEEKDAY(DATE(YEAR($L166),{1,3,11},7)))=2,1,0),0) -> 1 | I166: 1.126397938 | J166: 20:02:00.782 | K166: 13:22:33.935 | L166: 2011-03-25 | M166: 07:08:16.186 | N166: 19:21:26.404 | O166: 83
C167: 03/26/2011 | D167: 06:21:01 | E167: 20:02:57.373 | F167: 10.30072979 | G167: 10977 | H167: =IF($B$10=1,IF(MATCH($L167,DATE(YEAR($L167),{1,3,11},{1,15,8})-WEEKDAY(DATE(YEAR($L167),{1,3,11},7)))=2,1,0),0) -> 1 | I167: 1.127052925 | J167: 20:02:57.373 | K167: 13:21:00.694 | L167: 2011-03-26 | M167: 07:06:45.697 | N167: 19:22:20.792 | O167: 84
C168: 03/27/2011 | D168: 06:19:27 | E168: 20:03:54.057 | F168: 10.25887309 | G168: 11034 | H168: =IF($B$10=1,IF(MATCH($L168,DATE(YEAR($L168),{1,3,11},{1,15,8})-WEEKDAY(DATE(YEAR($L168),{1,3,11},7)))=2,1,0),0) -> 1 | I168: 1.127708992 | J168: 20:03:54.057 | K168: 13:19:27.362 | L168: 2011-03-27 | M168: 07:05:15.328 | N168: 19:23:15.087 | O168: 85
C169: 03/28/2011 | D169: 06:17:54 | E169: 20:04:50.844 | F169: 10.21726568 | G169: 11091 | H169: =IF($B$10=1,IF(MATCH($L169,DATE(YEAR($L169),{1,3,11},{1,15,8})-WEEKDAY(DATE(YEAR($L169),{1,3,11},7)))=2,1,0),0) -> 1 | I169: 1.128366245 | J169: 20:04:50.844 | K169: 13:17:53.970 | L169: 2011-03-28 | M169: 07:03:45.110 | N169: 19:24:09.299 | O169: 86
C170: 03/29/2011 | D170: 06:16:21 | E170: 20:05:47.742 | F170: 10.17562726 | G170: 11148 | H170: =IF($B$10=1,IF(MATCH($L170,DATE(YEAR($L170),{1,3,11},{1,15,8})-WEEKDAY(DATE(YEAR($L170),{1,3,11},7)))=2,1,0),0) -> 1 | I170: 1.12902479 | J170: 20:05:47.742 | K170: 13:16:20.548 | L170: 2011-03-29 | M170: 07:02:15.070 | N170: 19:25:03.437 | O170: 87
C171: 03/30/2011 | D171: 06:14:47 | E171: 20:06:44.760 | F171: 10.13367765 | G171: 11205 | H171: =IF($B$10=1,IF(MATCH($L171,DATE(YEAR($L171),{1,3,11},{1,15,8})-WEEKDAY(DATE(YEAR($L171),{1,3,11},7)))=2,1,0),0) -> 1 | I171: 1.129684728 | J171: 20:06:44.760 | K171: 13:14:47.125 | L171: 2011-03-30 | M171: 07:00:45.237 | N171: 19:25:57.512 | O171: 88
C172: 03/31/2011 | D172: 06:13:14 | E172: 20:07:41.908 | F172: 10.0919701 | G172: 11262 | H172: =IF($B$10=1,IF(MATCH($L172,DATE(YEAR($L172),{1,3,11},{1,15,8})-WEEKDAY(DATE(YEAR($L172),{1,3,11},7)))=2,1,0),0) -> 1 | I172: 1.130346153 | J172: 20:07:41.908 | K172: 13:13:13.732 | L172: 2011-03-31 | M172: 06:59:15.642 | N172: 19:26:51.531 | O172: 89
C173: 04/01/2011 | D173: 06:11:40 | E173: 20:08:39.191 | F173: 10.04994687 | G173: 11319 | H173: =IF($B$10=1,IF(MATCH($L173,DATE(YEAR($L173),{1,3,11},{1,15,8})-WEEKDAY(DATE(YEAR($L173),{1,3,11},7)))=2,1,0),0) -> 1 | I173: 1.131009158 | J173: 20:08:39.191 | K173: 13:11:40.399 | L173: 2011-04-01 | M173: 06:57:46.313 | N173: 19:27:45.504 | O173: 90
C174: 04/02/2011 | D174: 06:10:07 | E174: 20:09:36.619 | F174: 10.00816148 | G174: 11377 | H174: =IF($B$10=1,IF(MATCH($L174,DATE(YEAR($L174),{1,3,11},{1,15,8})-WEEKDAY(DATE(YEAR($L174),{1,3,11},7)))=2,1,0),0) -> 1 | I174: 1.131673827 | J174: 20:09:36.619 | K174: 13:10:07.155 | L174: 2011-04-02 | M174: 06:56:17.278 | N174: 19:28:39.439 | O174: 91
C175: 04/03/2011 | D175: 06:08:34 | E175: 20:10:34.197 | F175: 9.966334231 | G175: 11434 | H175: =IF($B$10=1,IF(MATCH($L175,DATE(YEAR($L175),{1,3,11},{1,15,8})-WEEKDAY(DATE(YEAR($L175),{1,3,11},7)))=2,1,0),0) -> 1 | I175: 1.13234024 | J175: 20:10:34.197 | K175: 13:08:34.031 | L175: 2011-04-03 | M175: 06:54:48.568 | N175: 19:29:33.344 | O175: 92
C176: 04/04/2011 | D176: 06:07:01 | E176: 20:11:31.932 | F176: 9.924463362 | G176: 11492 | H176: =IF($B$10=1,IF(MATCH($L176,DATE(YEAR($L176),{1,3,11},{1,15,8})-WEEKDAY(DATE(YEAR($L176),{1,3,11},7)))=2,1,0),0) -> 1 | I176: 1.133008471 | J176: 20:11:31.932 | K176: 13:07:01.057 | L176: 2011-04-04 | M176: 06:53:20.211 | N176: 19:30:27.227 | O176: 93
C177: 04/05/2011 | D177: 06:05:28 | E177: 20:12:29.830 | F177: 9.882547262 | G177: 11550 | H177: =IF($B$10=1,IF(MATCH($L177,DATE(YEAR($L177),{1,3,11},{1,15,8})-WEEKDAY(DATE(YEAR($L177),{1,3,11},7)))=2,1,0),0) -> 1 | I177: 1.133678586 | J177: 20:12:29.830 | K177: 13:05:28.265 | L177: 2011-04-05 | M177: 06:51:52.236 | N177: 19:31:21.095 | O177: 94
C178: 04/06/2011 | D178: 06:03:56 | E178: 20:13:27.896 | F178: 9.84086226 | G178: 11608 | H178: =IF($B$10=1,IF(MATCH($L178,DATE(YEAR($L178),{1,3,11},{1,15,8})-WEEKDAY(DATE(YEAR($L178),{1,3,11},7)))=2,1,0),0) -> 1 | I178: 1.134350647 | J178: 20:13:27.896 | K178: 13:03:55.685 | L178: 2011-04-06 | M178: 06:50:24.672 | N178: 19:32:14.955 | O178: 95
C179: 04/07/2011 | D179: 06:02:23 | E179: 20:14:26.135 | F179: 9.798851527 | G179: 11666 | H179: =IF($B$10=1,IF(MATCH($L179,DATE(YEAR($L179),{1,3,11},{1,15,8})-WEEKDAY(DATE(YEAR($L179),{1,3,11},7)))=2,1,0),0) -> 1 | I179: 1.135024705 | J179: 20:14:26.135 | K179: 13:02:23.347 | L179: 2011-04-07 | M179: 06:48:57.548 | N179: 19:33:08.813 | O179: 96
C180: 04/08/2011 | D180: 06:00:51 | E180: 20:15:24.550 | F180: 9.757069524 | G180: 11725 | H180: =IF($B$10=1,IF(MATCH($L180,DATE(YEAR($L180),{1,3,11},{1,15,8})-WEEKDAY(DATE(YEAR($L180),{1,3,11},7)))=2,1,0),0) -> 1 | I180: 1.135700807 | J180: 20:15:24.550 | K180: 13:00:51.283 | L180: 2011-04-08 | M180: 06:47:30.894 | N180: 19:34:02.675 | O180: 97
C181: 04/09/2011 | D181: 05:59:20 | E181: 20:16:23.145 | F181: 9.715515345 | G181: 11783 | H181: =IF($B$10=1,IF(MATCH($L181,DATE(YEAR($L181),{1,3,11},{1,15,8})-WEEKDAY(DATE(YEAR($L181),{1,3,11},7)))=2,1,0),0) -> 1 | I181: 1.13637899 | J181: 20:16:23.145 | K181: 12:59:19.524 | L181: 2011-04-09 | M181: 06:46:04.738 | N181: 19:34:56.546 | O181: 98
C182: 04/10/2011 | D182: 05:57:48 | E182: 20:17:21.922 | F182: 9.673632728 | G182: 11842 | H182: =IF($B$10=1,IF(MATCH($L182,DATE(YEAR($L182),{1,3,11},{1,15,8})-WEEKDAY(DATE(YEAR($L182),{1,3,11},7)))=2,1,0),0) -> 1 | I182: 1.137059284 | J182: 20:17:21.922 | K182: 12:57:48.102 | L182: 2011-04-10 | M182: 06:44:39.109 | N182: 19:35:50.430 | O182: 99
C183: 04/11/2011 | D183: 05:56:17 | E183: 20:18:20.884 | F183: 9.631976729 | G183: 11901 | H183: =IF($B$10=1,IF(MATCH($L183,DATE(YEAR($L183),{1,3,11},{1,15,8})-WEEKDAY(DATE(YEAR($L183),{1,3,11},7)))=2,1,0),0) -> 1 | I183: 1.13774171 | J183: 20:18:20.884 | K183: 12:56:17.048 | L183: 2011-04-11 | M183: 06:43:14.037 | N183: 19:36:44.331 | O183: 100
C184: 04/12/2011 | D184: 05:54:46 | E184: 20:19:20.031 | F184: 9.590269287 | G184: 11960 | H184: =IF($B$10=1,IF(MATCH($L184,DATE(YEAR($L184),{1,3,11},{1,15,8})-WEEKDAY(DATE(YEAR($L184),{1,3,11},7)))=2,1,0),0) -> 1 | I184: 1.13842628 | J184: 20:19:20.031 | K184: 12:54:46.394 | L184: 2011-04-12 | M184: 06:41:49.551 | N184: 19:37:38.254 | O184: 101
C185: 04/13/2011 | D185: 05:53:16 | E185: 20:20:19.363 | F185: 9.548788121 | G185: 12019 | H185: =IF($B$10=1,IF(MATCH($L185,DATE(YEAR($L185),{1,3,11},{1,15,8})-WEEKDAY(DATE(YEAR($L185),{1,3,11},7)))=2,1,0),0) -> 1 | I185: 1.139112995 | J185: 20:20:19.363 | K185: 12:53:16.173 | L185: 2011-04-13 | M185: 06:40:25.680 | N185: 19:38:32.200 | O185: 102
C186: 04/14/2011 | D186: 05:51:46 | E186: 20:21:18.880 | F186: 9.507255628 | G186: 12079 | H186: =IF($B$10=1,IF(MATCH($L186,DATE(YEAR($L186),{1,3,11},{1,15,8})-WEEKDAY(DATE(YEAR($L186),{1,3,11},7)))=2,1,0),0) -> 1 | I186: 1.139801849 | J186: 20:21:18.880 | K186: 12:51:46.416 | L186: 2011-04-14 | M186: 06:39:02.454 | N186: 19:39:26.173 | O186: 103
C187: 04/15/2011 | D187: 05:50:17 | E187: 20:22:18.580 | F187: 9.465950004 | G187: 12139 | H187: =IF($B$10=1,IF(MATCH($L187,DATE(YEAR($L187),{1,3,11},{1,15,8})-WEEKDAY(DATE(YEAR($L187),{1,3,11},7)))=2,1,0),0) -> 1 | I187: 1.140492824 | J187: 20:22:18.580 | K187: 12:50:17.156 | L187: 2011-04-15 | M187: 06:37:39.901 | N187: 19:40:20.172 | O187: 104
C188: 04/16/2011 | D188: 05:48:48 | E188: 20:23:18.461 | F188: 9.424594142 | G188: 12198 | H188: =IF($B$10=1,IF(MATCH($L188,DATE(YEAR($L188),{1,3,11},{1,15,8})-WEEKDAY(DATE(YEAR($L188),{1,3,11},7)))=2,1,0),0) -> 1 | I188: 1.141185892 | J188: 20:23:18.461 | K188: 12:48:48.426 | L188: 2011-04-16 | M188: 06:36:18.051 | N188: 19:41:14.199 | O188: 105
C189: 04/17/2011 | D189: 05:47:20 | E189: 20:24:18.520 | F189: 9.383466749 | G189: 12259 | H189: =IF($B$10=1,IF(MATCH($L189,DATE(YEAR($L189),{1,3,11},{1,15,8})-WEEKDAY(DATE(YEAR($L189),{1,3,11},7)))=2,1,0),0) -> 1 | I189: 1.141881015 | J189: 20:24:18.520 | K189: 12:47:20.258 | L189: 2011-04-17 | M189: 06:34:56.933 | N189: 19:42:08.253 | O189: 106
C190: 04/18/2011 | D190: 05:45:53 | E190: 20:25:18.752 | F190: 9.342569025 | G190: 12319 | H190: =IF($B$10=1,IF(MATCH($L190,DATE(YEAR($L190),{1,3,11},{1,15,8})-WEEKDAY(DATE(YEAR($L190),{1,3,11},7)))=2,1,0),0) -> 1 | I190: 1.142578142 | J190: 20:25:18.752 | K190: 12:45:52.687 | L190: 2011-04-18 | M190: 06:33:36.577 | N190: 19:43:02.334 | O190: 107
C191: 04/19/2011 | D191: 05:44:26 | E191: 20:26:19.151 | F191: 9.30162467 | G191: 12379 | H191: =IF($B$10=1,IF(MATCH($L191,DATE(YEAR($L191),{1,3,11},{1,15,8})-WEEKDAY(DATE(YEAR($L191),{1,3,11},7)))=2,1,0),0) -> 1 | I191: 1.143277213 | J191: 20:26:19.151 | K191: 12:44:25.745 | L191: 2011-04-19 | M191: 06:32:17.012 | N191: 19:43:56.440 | O191: 108
C192: 04/20/2011 | D192: 05:42:59 | E192: 20:27:19.712 | F192: 9.260635449 | G192: 12440 | H192: =IF($B$10=1,IF(MATCH($L192,DATE(YEAR($L192),{1,3,11},{1,15,8})-WEEKDAY(DATE(YEAR($L192),{1,3,11},7)))=2,1,0),0) -> 1 | I192: 1.143978153 | J192: 20:27:19.712 | K192: 12:42:59.466 | L192: 2011-04-20 | M192: 06:30:58.267 | N192: 19:44:50.569 | O192: 109
C193: 04/21/2011 | D193: 05:41:34 | E193: 20:28:20.428 | F193: 9.220158976 | G193: 12500 | H193: =IF($B$10=1,IF(MATCH($L193,DATE(YEAR($L193),{1,3,11},{1,15,8})-WEEKDAY(DATE(YEAR($L193),{1,3,11},7)))=2,1,0),0) -> 1 | I193: 1.144680876 | J193: 20:28:20.428 | K193: 12:41:33.885 | L193: 2011-04-21 | M193: 06:29:40.372 | N193: 19:45:44.716 | O193: 110
C194: 04/22/2011 | D194: 05:40:09 | E194: 20:29:21.289 | F194: 9.179642059 | G194: 12561 | H194: =IF($B$10=1,IF(MATCH($L194,DATE(YEAR($L194),{1,3,11},{1,15,8})-WEEKDAY(DATE(YEAR($L194),{1,3,11},7)))=2,1,0),0) -> 1 | I194: 1.145385285 | J194: 20:29:21.289 | K194: 12:40:09.034 | L194: 2011-04-22 | M194: 06:28:23.356 | N194: 19:46:38.878 | O194: 111
C195: 04/23/2011 | D195: 05:38:45 | E195: 20:30:22.285 | F195: 9.13936515 | G195: 12622 | H195: =IF($B$10=1,IF(MATCH($L195,DATE(YEAR($L195),{1,3,11},{1,15,8})-WEEKDAY(DATE(YEAR($L195),{1,3,11},7)))=2,1,0),0) -> 1 | I195: 1.146091267 | J195: 20:30:22.285 | K195: 12:38:44.949 | L195: 2011-04-23 | M195: 06:27:07.248 | N195: 19:47:33.050 | O195: 112
C196: 04/24/2011 | D196: 05:37:22 | E196: 20:31:23.408 | F196: 9.099331241 | G196: 12683 | H196: =IF($B$10=1,IF(MATCH($L196,DATE(YEAR($L196),{1,3,11},{1,15,8})-WEEKDAY(DATE(YEAR($L196),{1,3,11},7)))=2,1,0),0) -> 1 | I196: 1.146798698 | J196: 20:31:23.408 | K196: 12:37:21.664 | L196: 2011-04-24 | M196: 06:25:52.078 | N196: 19:48:27.224 | O196: 113
C197: 04/25/2011 | D197: 05:35:59 | E197: 20:32:24.643 | F197: 9.059265876 | G197: 12745 | H197: =IF($B$10=1,IF(MATCH($L197,DATE(YEAR($L197),{1,3,11},{1,15,8})-WEEKDAY(DATE(YEAR($L197),{1,3,11},7)))=2,1,0),0) -> 1 | I197: 1.14750744 | J197: 20:32:24.643 | K197: 12:35:59.213 | L197: 2011-04-25 | M197: 06:24:37.875 | N197: 19:49:21.395 | O197: 114
C198: 04/26/2011 | D198: 05:34:38 | E198: 20:33:25.978 | F198: 9.019728263 | G198: 12806 | H198: =IF($B$10=1,IF(MATCH($L198,DATE(YEAR($L198),{1,3,11},{1,15,8})-WEEKDAY(DATE(YEAR($L198),{1,3,11},7)))=2,1,0),0) -> 1 | I198: 1.148217341 | J198: 20:33:25.978 | K198: 12:34:37.633 | L198: 2011-04-26 | M198: 06:23:24.667 | N198: 19:50:15.554 | O198: 115
C199: 04/27/2011 | D199: 05:33:17 | E199: 20:34:27.399 | F199: 8.98016684 | G199: 12867 | H199: =IF($B$10=1,IF(MATCH($L199,DATE(YEAR($L199),{1,3,11},{1,15,8})-WEEKDAY(DATE(YEAR($L199),{1,3,11},7)))=2,1,0),0) -> 1 | I199: 1.148928234 | J199: 20:34:27.399 | K199: 12:33:16.957 | L199: 2011-04-27 | M199: 06:22:12.485 | N199: 19:51:09.691 | O199: 116
C200: 04/28/2011 | D200: 05:31:57 | E200: 20:35:28.891 | F200: 8.940863726 | G200: 12929 | H200: =IF($B$10=1,IF(MATCH($L200,DATE(YEAR($L200),{1,3,11},{1,15,8})-WEEKDAY(DATE(YEAR($L200),{1,3,11},7)))=2,1,0),0) -> 1 | I200: 1.149639937 | J200: 20:35:28.891 | K200: 12:31:57.222 | L200: 2011-04-28 | M200: 06:21:01.356 | N200: 19:52:03.798 | O200: 117
C201: 04/29/2011 | D201: 05:30:38 | E201: 20:36:30.435 | F201: 8.901823614 | G201: 12990 | H201: =IF($B$10=1,IF(MATCH($L201,DATE(YEAR($L201),{1,3,11},{1,15,8})-WEEKDAY(DATE(YEAR($L201),{1,3,11},7)))=2,1,0),0) -> 1 | I201: 1.150352257 | J201: 20:36:30.435 | K201: 12:30:38.462 | L201: 2011-04-29 | M201: 06:19:51.310 | N201: 19:52:57.863 | O201: 118
C202: 04/30/2011 | D202: 05:29:21 | E202: 20:37:32.014 | F202: 8.863329331 | G202: 13052 | H202: =IF($B$10=1,IF(MATCH($L202,DATE(YEAR($L202),{1,3,11},{1,15,8})-WEEKDAY(DATE(YEAR($L202),{1,3,11},7)))=2,1,0),0) -> 1 | I202: 1.151064982 | J202: 20:37:32.014 | K202: 12:29:20.713 | L202: 2011-04-30 | M202: 06:18:42.375 | N202: 19:53:51.873 | O202: 119
C203: 05/01/2011 | D203: 05:28:04 | E203: 20:38:33.609 | F203: 8.824830735 | G203: 13114 | H203: =IF($B$10=1,IF(MATCH($L203,DATE(YEAR($L203),{1,3,11},{1,15,8})-WEEKDAY(DATE(YEAR($L203),{1,3,11},7)))=2,1,0),0) -> 1 | I203: 1.151777886 | J203: 20:38:33.609 | K203: 12:28:04.012 | L203: 2011-05-01 | M203: 06:17:34.580 | N203: 19:54:45.815 | O203: 120
C204: 05/02/2011 | D204: 05:26:48 | E204: 20:39:35.199 | F204: 8.786611383 | G204: 13175 | H204: =IF($B$10=1,IF(MATCH($L204,DATE(YEAR($L204),{1,3,11},{1,15,8})-WEEKDAY(DATE(YEAR($L204),{1,3,11},7)))=2,1,0),0) -> 1 | I204: 1.152490729 | J204: 20:39:35.199 | K204: 12:26:48.393 | L204: 2011-05-02 | M204: 06:16:27.953 | N204: 19:55:39.676 | O204: 121
C205: 05/03/2011 | D205: 05:25:34 | E205: 20:40:36.761 | F205: 8.7489552 | G205: 13237 | H205: =IF($B$10=1,IF(MATCH($L205,DATE(YEAR($L205),{1,3,11},{1,15,8})-WEEKDAY(DATE(YEAR($L205),{1,3,11},7)))=2,1,0),0) -> 1 | I205: 1.153203256 | J205: 20:40:36.761 | K205: 12:25:33.893 | L205: 2011-05-03 | M205: 06:15:22.523 | N205: 19:56:33.440 | O205: 122
C206: 05/04/2011 | D206: 05:24:21 | E206: 20:41:38.273 | F206: 8.71159093 | G206: 13298 | H206: =IF($B$10=1,IF(MATCH($L206,DATE(YEAR($L206),{1,3,11},{1,15,8})-WEEKDAY(DATE(YEAR($L206),{1,3,11},7)))=2,1,0),0) -> 1 | I206: 1.153915193 | J206: 20:41:38.273 | K206: 12:24:20.548 | L206: 2011-05-04 | M206: 06:14:18.316 | N206: 19:57:27.090 | O206: 123
C207: 05/05/2011 | D207: 05:23:08 | E207: 20:42:39.708 | F207: 8.674247688 | G207: 13360 | H207: =IF($B$10=1,IF(MATCH($L207,DATE(YEAR($L207),{1,3,11},{1,15,8})-WEEKDAY(DATE(YEAR($L207),{1,3,11},7)))=2,1,0),0) -> 1 | I207: 1.154626254 | J207: 20:42:39.708 | K207: 12:23:08.394 | L207: 2011-05-05 | M207: 06:13:15.361 | N207: 19:58:20.609 | O207: 124
C208: 05/06/2011 | D208: 05:21:57 | E208: 20:43:41.042 | F208: 8.637488298 | G208: 13421 | H208: =IF($B$10=1,IF(MATCH($L208,DATE(YEAR($L208),{1,3,11},{1,15,8})-WEEKDAY(DATE(YEAR($L208),{1,3,11},7)))=2,1,0),0) -> 1 | I208: 1.155336136 | J208: 20:43:41.042 | K208: 12:21:57.466 | L208: 2011-05-06 | M208: 06:12:13.685 | N208: 19:59:13.978 | O208: 125
C209: 05/07/2011 | D209: 05:20:48 | E209: 20:44:42.247 | F209: 8.601320402 | G209: 13482 | H209: =IF($B$10=1,IF(MATCH($L209,DATE(YEAR($L209),{1,3,11},{1,15,8})-WEEKDAY(DATE(YEAR($L209),{1,3,11},7)))=2,1,0),0) -> 1 | I209: 1.15604452 | J209: 20:44:42.247 | K209: 12:20:47.801 | L209: 2011-05-07 | M209: 06:11:13.314 | N209: 20:00:07.178 | O209: 126
C210: 05/08/2011 | D210: 05:19:39 | E210: 20:45:43.293 | F210: 8.565196461 | G210: 13543 | H210: =IF($B$10=1,IF(MATCH($L210,DATE(YEAR($L210),{1,3,11},{1,15,8})-WEEKDAY(DATE(YEAR($L210),{1,3,11},7)))=2,1,0),0) -> 1 | I210: 1.156751073 | J210: 20:45:43.293 | K210: 12:19:39.434 | L210: 2011-05-08 | M210: 06:10:14.276 | N210: 20:01:00.187 | O210: 127
C211: =TEXT(L211,"mm/dd/yyyy") -> 05/09/2011 | D211: =TEXT(dawn($B$4,$B$5,YEAR($C211+1),MONTH($C211+1),DAY($C211+1),$B$9,$H211,$D$6),"hh:mm:ss") -> 05:18:32 | E211: =dusk($B$4,$B$5,YEAR(C211),MONTH(C211),DAY(C211),$B$9,$H211,$D$5) -> 20:46:44.151 | F211: =((TIME(23,59,59.999)-E211)+D211)*24 -> 8.529680416 | G211: 13604 | H211: =IF($B$10=1,IF(MATCH($L211,DATE(YEAR($L211),{1,3,11},{1,15,8})-WEEKDAY(DATE(YEAR($L211),{1,3,11},7)))=2,1,0),0) -> 1 | I211: =dusk($B$4,$B$5,YEAR($C211),MONTH($C211),DAY($C211),0,0,$D$5) -> 1.157455446 | J211: =dusk($B$4,$B$5,YEAR($C211),MONTH($C211),DAY($C211),$B$9,$H211,$D$5) -> 20:46:44.151 | K211: 12:18:32.401 | L211: 2011-05-09 | M211: 06:09:16.595 | N211: 20:01:52.985 | O211: 128
C212: 05/10/2011 | D212: 05:17:27 | E212: 20:47:44.788 | F212: 8.494781022 | G212: =HOUR(E212-$C$77)*3600+MINUTE(E212-$C$77)*60+SECOND(E212-$C$77) -> 13665 | H212: =IF($B$10=1,IF(MATCH($L212,DATE(YEAR($L212),{1,3,11},{1,15,8})-WEEKDAY(DATE(YEAR($L212),{1,3,11},7)))=2,1,0),0) -> 1 | I212: 1.158157272 | J212: 20:47:44.788 | K212: =dawn($B$4,$B$5,YEAR($C212+1),MONTH($C212+1),DAY($C212+1),0,0,$D$6) -> 12:17:26.739 | L212: 2011-05-10 | M212: =dawn($B$4,$B$5,YEAR($C212+1),MONTH($C212+1),DAY($C212+1),$B$9,$H212,0) -> 06:08:20.299 | N212: =dusk($B$4,$B$5,YEAR(C212),MONTH(C212),DAY(C212),$B$9,$H212,0) -> 20:02:45.547 | O212: 129
C213: 05/11/2011 | D213: 05:16:22 | E213: 20:48:45.173 | F213: 8.459951841 | G213: 13725 | H213: =IF($B$10=1,IF(MATCH($L213,DATE(YEAR($L213),{1,3,11},{1,15,8})-WEEKDAY(DATE(YEAR($L213),{1,3,11},7)))=2,1,0),0) -> 1 | I213: 1.158856173 | J213: 20:48:45.173 | K213: 12:16:22.482 | L213: =L212+1 -> 2011-05-11 | M213: 06:07:25.413 | N213: 20:03:37.851 | O213: =O212+1 -> 130
C214: 05/12/2011 | D214: 05:15:20 | E214: 20:49:45.272 | F214: 8.426035681 | G214: 13785 | H214: =IF($B$10=1,IF(MATCH($L214,DATE(YEAR($L214),{1,3,11},{1,15,8})-WEEKDAY(DATE(YEAR($L214),{1,3,11},7)))=2,1,0),0) -> 1 | I214: 1.159551754 | J214: 20:49:45.272 | K214: 12:15:19.665 | L214: 2011-05-12 | M214: 06:06:31.960 | N214: 20:04:29.870 | O214: 131
C215: 05/13/2011 | D215: 05:14:18 | E215: 20:50:45.047 | F215: 8.392209034 | G215: 13845 | H215: =IF($B$10=1,IF(MATCH($L215,DATE(YEAR($L215),{1,3,11},{1,15,8})-WEEKDAY(DATE(YEAR($L215),{1,3,11},7)))=2,1,0),0) -> 1 | I215: 1.160243605 | J215: 20:50:45.047 | K215: 12:14:18.324 | L215: 2011-05-13 | M215: 06:05:39.965 | N215: 20:05:21.579 | O215: 132
C216: 05/14/2011 | D216: 05:13:18 | E216: 20:51:44.465 | F216: 8.359037626 | G216: 13904 | H216: =IF($B$10=1,IF(MATCH($L216,DATE(YEAR($L216),{1,3,11},{1,15,8})-WEEKDAY(DATE(YEAR($L216),{1,3,11},7)))=2,1,0),0) -> 1 | I216: 1.160931303 | J216: 20:51:44.465 | K216: 12:13:18.493 | L216: 2011-05-14 | M216: 06:04:49.453 | N216: 20:06:12.951 | O216: 133
C217: 05/15/2011 | D217: 05:12:20 | E217: 20:52:43.485 | F217: 8.326531957 | G217: 13963 | H217: =IF($B$10=1,IF(MATCH($L217,DATE(YEAR($L217),{1,3,11},{1,15,8})-WEEKDAY(DATE(YEAR($L217),{1,3,11},7)))=2,1,0),0) -> 1 | I217: 1.161614409 | J217: 20:52:43.485 | K217: 12:12:20.207 | L217: 2011-05-15 | M217: 06:04:00.445 | N217: 20:07:03.957 | O217: 134
C218: 05/16/2011 | D218: 05:11:23 | E218: 20:53:42.070 | F218: 8.294425076 | G218: 14022 | H218: =IF($B$10=1,IF(MATCH($L218,DATE(YEAR($L218),{1,3,11},{1,15,8})-WEEKDAY(DATE(YEAR($L218),{1,3,11},7)))=2,1,0),0) -> 1 | I218: 1.162292474 | J218: 20:53:42.070 | K218: 12:11:23.498 | L218: 2011-05-16 | M218: 06:03:12.964 | N218: 20:07:54.569 | O218: 135
C219: 05/17/2011 | D219: 05:10:28 | E219: 20:54:40.179 | F219: 8.263005894 | G219: 14080 | H219: =IF($B$10=1,IF(MATCH($L219,DATE(YEAR($L219),{1,3,11},{1,15,8})-WEEKDAY(DATE(YEAR($L219),{1,3,11},7)))=2,1,0),0) -> 1 | I219: 1.162965032 | J219: 20:54:40.179 | K219: 12:10:28.402 | L219: 2011-05-17 | M219: 06:02:27.032 | N219: 20:08:44.757 | O219: 136
C220: 05/18/2011 | D220: 05:09:35 | E220: 20:55:37.771 | F220: 8.232285844 | G220: 14138 | H220: =IF($B$10=1,IF(MATCH($L220,DATE(YEAR($L220),{1,3,11},{1,15,8})-WEEKDAY(DATE(YEAR($L220),{1,3,11},7)))=2,1,0),0) -> 1 | I220: 1.163631608 | J220: 20:55:37.771 | K220: 12:09:34.950 | L220: 2011-05-18 | M220: 06:01:42.670 | N220: 20:09:34.489 | O220: 137
C221: 05/19/2011 | D221: 05:08:43 | E221: 20:56:34.804 | F221: 8.201998864 | G221: 14195 | H221: =IF($B$10=1,IF(MATCH($L221,DATE(YEAR($L221),{1,3,11},{1,15,8})-WEEKDAY(DATE(YEAR($L221),{1,3,11},7)))=2,1,0),0) -> 1 | I221: 1.164291714 | J221: 20:56:34.804 | K221: 12:08:43.174 | L221: 2011-05-19 | M221: 06:00:59.897 | N221: 20:10:23.734 | O221: 138
C222: 05/20/2011 | D222: 05:07:53 | E222: 20:57:31.235 | F222: 8.172434711 | G222: 14251 | H222: =IF($B$10=1,IF(MATCH($L222,DATE(YEAR($L222),{1,3,11},{1,15,8})-WEEKDAY(DATE(YEAR($L222),{1,3,11},7)))=2,1,0),0) -> 1 | I222: 1.16494485 | J222: 20:57:31.235 | K222: 12:07:53.107 | L222: 2011-05-20 | M222: 06:00:18.733 | N222: 20:11:12.459 | O222: 139
C223: 05/21/2011 | D223: 05:07:05 | E223: 20:58:27.020 | F223: 8.143605615 | G223: 14307 | H223: =IF($B$10=1,IF(MATCH($L223,DATE(YEAR($L223),{1,3,11},{1,15,8})-WEEKDAY(DATE(YEAR($L223),{1,3,11},7)))=2,1,0),0) -> 1 | I223: 1.165590507 | J223: 20:58:27.020 | K223: 12:07:04.779 | L223: 2011-05-21 | M223: 05:59:39.197 | N223: 20:12:00.631 | O223: 140
C224: 05/22/2011 | D224: 05:06:18 | E224: 20:59:22.113 | F224: 8.115246259 | G224: 14362 | H224: =IF($B$10=1,IF(MATCH($L224,DATE(YEAR($L224),{1,3,11},{1,15,8})-WEEKDAY(DATE(YEAR($L224),{1,3,11},7)))=2,1,0),0) -> 1 | I224: 1.166228165 | J224: 20:59:22.113 | K224: 12:06:18.220 | L224: 2011-05-22 | M224: 05:59:01.305 | N224: 20:12:48.216 | O224: 141
C225: 05/23/2011 | D225: 05:05:33 | E225: 21:00:16.470 | F225: 8.087647087 | G225: 14416 | H225: =IF($B$10=1,IF(MATCH($L225,DATE(YEAR($L225),{1,3,11},{1,15,8})-WEEKDAY(DATE(YEAR($L225),{1,3,11},7)))=2,1,0),0) -> 1 | I225: 1.166857297 | J225: 21:00:16.470 | K225: 12:05:33.459 | L225: 2011-05-23 | M225: 05:58:25.075 | N225: 20:13:35.180 | O225: 142
C226: 05/24/2011 | D226: 05:04:51 | E226: 21:01:10.045 | F226: 8.061098734 | G226: 14470 | H226: =IF($B$10=1,IF(MATCH($L226,DATE(YEAR($L226),{1,3,11},{1,15,8})-WEEKDAY(DATE(YEAR($L226),{1,3,11},7)))=2,1,0),0) -> 1 | I226: 1.167477368 | J226: 21:01:10.045 | K226: 12:04:50.524 | L226: 2011-05-24 | M226: 05:57:50.522 | N226: 20:14:21.486 | O226: 143
C227: 05/25/2011 | D227: 05:04:09 | E227: 21:02:02.789 | F227: 8.034780889 | G227: 14523 | H227: =IF($B$10=1,IF(MATCH($L227,DATE(YEAR($L227),{1,3,11},{1,15,8})-WEEKDAY(DATE(YEAR($L227),{1,3,11},7)))=2,1,0),0) -> 1 | I227: 1.168087833 | J227: 21:02:02.789 | K227: 12:04:09.443 | L227: 2011-05-25 | M227: 05:57:17.660 | N227: 20:15:07.099 | O227: 144
C228: 05/26/2011 | D228: 05:03:30 | E228: 21:02:54.656 | F228: 8.009540048 | G228: 14575 | H228: =IF($B$10=1,IF(MATCH($L228,DATE(YEAR($L228),{1,3,11},{1,15,8})-WEEKDAY(DATE(YEAR($L228),{1,3,11},7)))=2,1,0),0) -> 1 | I228: 1.168688146 | J228: 21:02:54.656 | K228: 12:03:30.242 | L228: 2011-05-26 | M228: 05:56:46.502 | N228: 20:15:51.982 | O228: 145
C229: 05/27/2011 | D229: 05:02:53 | E229: 21:03:45.598 | F229: 7.985111711 | G229: 14626 | H229: =IF($B$10=1,IF(MATCH($L229,DATE(YEAR($L229),{1,3,11},{1,15,8})-WEEKDAY(DATE(YEAR($L229),{1,3,11},7)))=2,1,0),0) -> 1 | I229: 1.169277753 | J229: 21:03:45.598 | K229: 12:02:52.946 | L229: 2011-05-27 | M229: 05:56:17.062 | N229: 20:16:36.099 | O229: 146
C230: 05/28/2011 | D230: 05:02:18 | E230: 21:04:35.567 | F230: 7.961509248 | G230: 14676 | H230: =IF($B$10=1,IF(MATCH($L230,DATE(YEAR($L230),{1,3,11},{1,15,8})-WEEKDAY(DATE(YEAR($L230),{1,3,11},7)))=2,1,0),0) -> 1 | I230: 1.169856096 | J230: 21:04:35.567 | K230: 12:02:17.578 | L230: 2011-05-28 | M230: 05:55:49.350 | N230: 20:17:19.412 | O230: 147
C231: 05/29/2011 | D231: 05:01:44 | E231: 21:05:24.514 | F231: 7.938468312 | G231: 14725 | H231: =IF($B$10=1,IF(MATCH($L231,DATE(YEAR($L231),{1,3,11},{1,15,8})-WEEKDAY(DATE(YEAR($L231),{1,3,11},7)))=2,1,0),0) -> 1 | I231: 1.170422617 | J231: 21:05:24.514 | K231: 12:01:44.161 | L231: 2011-05-29 | M231: 05:55:23.376 | N231: 20:18:01.884 | O231: 148
C232: 05/30/2011 | D232: 05:01:13 | E232: 21:06:12.391 | F232: 7.916557923 | G232: 14772 | H232: =IF($B$10=1,IF(MATCH($L232,DATE(YEAR($L232),{1,3,11},{1,15,8})-WEEKDAY(DATE(YEAR($L232),{1,3,11},7)))=2,1,0),0) -> 1 | I232: 1.170976753 | J232: 21:06:12.391 | K232: 12:01:12.716 | L232: 2011-05-30 | M232: 05:54:59.148 | N232: 20:18:43.476 | O232: 149
C233: 05/31/2011 | D233: 05:00:43 | E233: 21:06:59.150 | F233: 7.895235998 | G233: 14819 | H233: =IF($B$10=1,IF(MATCH($L233,DATE(YEAR($L233),{1,3,11},{1,15,8})-WEEKDAY(DATE(YEAR($L233),{1,3,11},7)))=2,1,0),0) -> 1 | I233: 1.171517945 | J233: 21:06:59.150 | K233: 12:00:43.262 | L233: 2011-05-31 | M233: 05:54:36.674 | N233: 20:19:24.152 | O233: 150
C234: 06/01/2011 | D234: 05:00:16 | E234: 21:07:44.742 | F234: 7.875071541 | G234: 14865 | H234: =IF($B$10=1,IF(MATCH($L234,DATE(YEAR($L234),{1,3,11},{1,15,8})-WEEKDAY(DATE(YEAR($L234),{1,3,11},7)))=2,1,0),0) -> 1 | I234: 1.17204563 | J234: 21:07:44.742 | K234: 12:00:15.819 | L234: 2011-06-01 | M234: 05:54:15.961 | N234: 20:20:03.872 | O234: 151
C235: 06/02/2011 | D235: 04:59:50 | E235: 21:08:29.119 | F235: 7.855522389 | G235: 14909 | H235: =IF($B$10=1,IF(MATCH($L235,DATE(YEAR($L235),{1,3,11},{1,15,8})-WEEKDAY(DATE(YEAR($L235),{1,3,11},7)))=2,1,0),0) -> 1 | I235: 1.172559252 | J235: 21:08:29.119 | K235: 11:59:50.401 | L235: 2011-06-02 | M235: 05:53:57.012 | N235: 20:20:42.600 | O235: 152
C236: 06/03/2011 | D236: 04:59:27 | E236: 21:09:12.233 | F236: 7.837157406 | G236: 14952 | H236: =IF($B$10=1,IF(MATCH($L236,DATE(YEAR($L236),{1,3,11},{1,15,8})-WEEKDAY(DATE(YEAR($L236),{1,3,11},7)))=2,1,0),0) -> 1 | I236: 1.173058256 | J236: 21:09:12.233 | K236: 11:59:27.025 | L236: 2011-06-03 | M236: 05:53:39.831 | N236: 20:21:20.296 | O236: 153
C237: 06/04/2011 | D237: 04:59:06 | E237: 21:09:54.037 | F237: 7.819712009 | G237: 14994 | H237: =IF($B$10=1,IF(MATCH($L237,DATE(YEAR($L237),{1,3,11},{1,15,8})-WEEKDAY(DATE(YEAR($L237),{1,3,11},7)))=2,1,0),0) -> 1 | I237: 1.173542092 | J237: 21:09:54.037 | K237: 11:59:05.702 | L237: 2011-06-04 | M237: 05:53:24.420 | N237: 20:21:56.922 | O237: 154
C238: 06/05/2011 | D238: 04:58:46 | E238: 21:10:34.483 | F238: 7.802921468 | G238: 15034 | H238: =IF($B$10=1,IF(MATCH($L238,DATE(YEAR($L238),{1,3,11},{1,15,8})-WEEKDAY(DATE(YEAR($L238),{1,3,11},7)))=2,1,0),0) -> 1 | I238: 1.174010217 | J238: 21:10:34.483 | K238: 11:58:46.445 | L238: 2011-06-05 | M238: 05:53:10.780 | N238: 20:22:32.442 | O238: 155
C239: 06/06/2011 | D239: 04:58:29 | E239: 21:11:13.525 | F239: 7.787354207 | G239: 15074 | H239: =IF($B$10=1,IF(MATCH($L239,DATE(YEAR($L239),{1,3,11},{1,15,8})-WEEKDAY(DATE(YEAR($L239),{1,3,11},7)))=2,1,0),0) -> 1 | I239: 1.174462093 | J239: 21:11:13.525 | K239: 11:58:29.262 | L239: 2011-06-06 | M239: 05:52:58.909 | N239: 20:23:06.818 | O239: 156
C240: 06/07/2011 | D240: 04:58:14 | E240: 21:11:51.118 | F240: 7.77274511 | G240: 15111 | H240: =IF($B$10=1,IF(MATCH($L240,DATE(YEAR($L240),{1,3,11},{1,15,8})-WEEKDAY(DATE(YEAR($L240),{1,3,11},7)))=2,1,0),0) -> 1 | I240: 1.174897195 | J240: 21:11:51.118 | K240: 11:58:14.162 | L240: 2011-06-07 | M240: 05:52:48.805 | N240: 20:23:40.013 | O240: 157
C241: 06/08/2011 | D241: 04:58:01 | E241: 21:12:27.216 | F241: 7.759106599 | G241: 15147 | H241: =IF($B$10=1,IF(MATCH($L241,DATE(YEAR($L241),{1,3,11},{1,15,8})-WEEKDAY(DATE(YEAR($L241),{1,3,11},7)))=2,1,0),0) -> 1 | I241: 1.175315003 | J241: 21:12:27.216 | K241: 11:58:01.149 | L241: 2011-06-08 | M241: 05:52:40.464 | N241: 20:24:11.990 | O241: 158
C242: 06/09/2011 | D242: 04:57:50 | E242: 21:13:01.777 | F242: 7.746450829 | G242: 15182 | H242: =IF($B$10=1,IF(MATCH($L242,DATE(YEAR($L242),{1,3,11},{1,15,8})-WEEKDAY(DATE(YEAR($L242),{1,3,11},7)))=2,1,0),0) -> 1 | I242: 1.175715012 | J242: 21:13:01.777 | K242: 11:57:50.227 | L242: 2011-06-09 | M242: 05:52:33.881 | N242: 20:24:42.713 | O242: 159
C243: 06/10/2011 | D243: 04:57:41 | E243: 21:13:34.757 | F243: 7.734789652 | G243: 15215 | H243: =IF($B$10=1,IF(MATCH($L243,DATE(YEAR($L243),{1,3,11},{1,15,8})-WEEKDAY(DATE(YEAR($L243),{1,3,11},7)))=2,1,0),0) -> 1 | I243: 1.176096727 | J243: 21:13:34.757 | K243: 11:57:41.398 | L243: 2011-06-10 | M243: 05:52:29.048 | N243: 20:25:12.147 | O243: 160
C244: 06/11/2011 | D244: 04:57:35 | E244: 21:14:06.115 | F244: 7.724412374 | G244: 15246 | H244: =IF($B$10=1,IF(MATCH($L244,DATE(YEAR($L244),{1,3,11},{1,15,8})-WEEKDAY(DATE(YEAR($L244),{1,3,11},7)))=2,1,0),0) -> 1 | I244: 1.17645967 | J244: 21:14:06.115 | K244: 11:57:34.660 | L244: 2011-06-11 | M244: 05:52:25.958 | N244: 20:25:40.257 | O244: 161
C245: 06/12/2011 | D245: 04:57:30 | E245: 21:14:35.811 | F245: 7.71477461 | G245: 15276 | H245: =IF($B$10=1,IF(MATCH($L245,DATE(YEAR($L245),{1,3,11},{1,15,8})-WEEKDAY(DATE(YEAR($L245),{1,3,11},7)))=2,1,0),0) -> 1 | I245: 1.176803373 | J245: 21:14:35.811 | K245: 11:57:30.011 | L245: 2011-06-12 | M245: 05:52:24.599 | N245: 20:26:07.009 | O245: 162
C246: 06/13/2011 | D246: 04:57:27 | E246: 21:15:03.806 | F246: 7.706164925 | G246: 15304 | H246: =IF($B$10=1,IF(MATCH($L246,DATE(YEAR($L246),{1,3,11},{1,15,8})-WEEKDAY(DATE(YEAR($L246),{1,3,11},7)))=2,1,0),0) -> 1 | I246: 1.177127387 | J246: 21:15:03.806 | K246: 11:57:27.445 | L246: 2011-06-13 | M246: 05:52:24.962 | N246: 20:26:32.370 | O246: 163
C247: 06/14/2011 | D247: 04:57:27 | E247: 21:15:30.063 | F247: 7.698871478 | G247: 15330 | H247: =IF($B$10=1,IF(MATCH($L247,DATE(YEAR($L247),{1,3,11},{1,15,8})-WEEKDAY(DATE(YEAR($L247),{1,3,11},7)))=2,1,0),0) -> 1 | I247: 1.177431281 | J247: 21:15:30.063 | K247: 11:57:26.956 | L247: 2011-06-14 | M247: 05:52:27.031 | N247: 20:26:56.307 | O247: 164
C248: 06/15/2011 | D248: 04:57:29 | E248: 21:15:54.545 | F248: 7.692626438 | G248: 15355 | H248: =IF($B$10=1,IF(MATCH($L248,DATE(YEAR($L248),{1,3,11},{1,15,8})-WEEKDAY(DATE(YEAR($L248),{1,3,11},7)))=2,1,0),0) -> 1 | I248: 1.177714639 | J248: 21:15:54.545 | K248: 11:57:28.533 | L248: 2011-06-15 | M248: 05:52:30.794 | N248: 20:27:18.790 | O248: 165
C249: 06/16/2011 | D249: 04:57:32 | E249: 21:16:17.219 | F249: 7.687161516 | G249: 15377 | H249: =IF($B$10=1,IF(MATCH($L249,DATE(YEAR($L249),{1,3,11},{1,15,8})-WEEKDAY(DATE(YEAR($L249),{1,3,11},7)))=2,1,0),0) -> 1 | I249: 1.177977066 | J249: 21:16:17.219 | K249: 11:57:32.166 | L249: 2011-06-16 | M249: 05:52:36.233 | N249: 20:27:39.787 | O249: 166
C250: 06/17/2011 | D250: 04:57:38 | E250: 21:16:38.051 | F250: 7.683041283 | G250: 15398 | H250: =IF($B$10=1,IF(MATCH($L250,DATE(YEAR($L250),{1,3,11},{1,15,8})-WEEKDAY(DATE(YEAR($L250),{1,3,11},7)))=2,1,0),0) -> 1 | I250: 1.178218187 | J250: 21:16:38.051 | K250: 11:57:37.839 | L250: 2011-06-17 | M250: 05:52:43.332 | N250: 20:27:59.271 | O250: 167
C251: 06/18/2011 | D251: 04:57:46 | E251: 21:16:57.013 | F251: 7.679996475 | G251: 15417 | H251: =IF($B$10=1,IF(MATCH($L251,DATE(YEAR($L251),{1,3,11},{1,15,8})-WEEKDAY(DATE(YEAR($L251),{1,3,11},7)))=2,1,0),0) -> 1 | I251: 1.178437647 | J251: 21:16:57.013 | K251: 11:57:45.537 | L251: 2011-06-18 | M251: 05:52:52.070 | N251: 20:28:17.212 | O251: 168
C252: 06/19/2011 | D252: 04:57:55 | E252: 21:17:14.074 | F252: 7.677757316 | G252: 15434 | H252: =IF($B$10=1,IF(MATCH($L252,DATE(YEAR($L252),{1,3,11},{1,15,8})-WEEKDAY(DATE(YEAR($L252),{1,3,11},7)))=2,1,0),0) -> 1 | I252: 1.178635112 | J252: 21:17:14.074 | K252: 11:57:55.241 | L252: 2011-06-19 | M252: 05:53:02.429 | N252: 20:28:33.583 | O252: 169
C253: 06/20/2011 | D253: 04:58:07 | E253: 21:17:29.207 | F253: 7.676886829 | G253: 15449 | H253: =IF($B$10=1,IF(MATCH($L253,DATE(YEAR($L253),{1,3,11},{1,15,8})-WEEKDAY(DATE(YEAR($L253),{1,3,11},7)))=2,1,0),0) -> 1 | I253: 1.178810271 | J253: 21:17:29.207 | K253: 11:58:06.931 | L253: 2011-06-20 | M253: 05:53:14.385 | N253: 20:28:48.360 | O253: 170
C254: 06/21/2011 | D254: 04:58:21 | E254: 21:17:42.389 | F254: 7.677114158 | G254: 15462 | H254: =IF($B$10=1,IF(MATCH($L254,DATE(YEAR($L254),{1,3,11},{1,15,8})-WEEKDAY(DATE(YEAR($L254),{1,3,11},7)))=2,1,0),0) -> 1 | I254: 1.178962836 | J254: 21:17:42.389 | K254: 11:58:20.583 | L254: 2011-06-21 | M254: 05:53:27.916 | N254: 20:29:01.518 | O254: 171
... 1693 more rows

Sheet solar_position
A1: Calculation of solar azimuth and elevation based on the calculation procedure by NOAA (http://www.srrb.noaa.gov/highlights/sunrise/azel.html)
A3: Input
A4: latitude in decimal degrees (positive in northern hemisphere) | B4: =47+36/60 -> 47.6
A5: longitude in decimal degrees (negative for western hemisphere) | B5: =-122-19/60 -> -122.3166667
A6: year | B6: 2001
A7: month | B7: 6
A8: day | B8: 21
A9: hours | B9: 13
A10: minutes | B10: 11
A11: seconds | B11: 0
A12: time zone in hours relative to GMT/UTC (PST= -8, MST= -7, CST= -6, EST= -5) | B12: -8
A13: daylight savings time (no= 0, yes= 1) | B13: 1
A15: Output
A16: solar azimuth (degrees clockwise from north) | B16: =solarazimuth(B4,B5,B6,B7,B8,B9,B10,B11,B12,B13) -> 179.9336529
A17: solar elevation (degrees from horizon) | B17: =solarelevation(B4,B5,B6,B7,B8,B9,B10,B11,B12,B13) -> 65.84507751
